Workbook

Sheet Vsl Details
A1: NAV-01 | C1: Doc No : NAV-01
B2: PASSAGE PLAN | C2: Revision: 01 Date: 15 Oct 2024
C3: Issued by: DPA Approved by: MD
A5: Date | C5: 2006-02-02
A7: Vessel Name | C7: M/T Example
A8: Call Sign : | C8: GB07
A9: Voyage No | C9: 11
A10: Ballast / Loaded : | C10: Loaded
A12: From | C12: Singapore
A13: Berth
A14: GMT : | C14: =8 -> 8
A16: To | C16: Rotterdam
A17: Berth
A18: GMT : | C18: 1
A20: Via | C20: Suez
A21: GMT : | C21: 3
A23: Draft F | C23: 11.00 m
A24: Draft Mid | C24: =+(C23+C25)/2 -> 10.50 m
A25: Draft A | C25: 10.00 m
A26: Trim | C26: =C25-C23 -> -01.00 m
A27: Cb @ | B27: =MAX(draft) -> 11.00 m (Block Coefficient) | C27: 0.8123
A28: Air Draft (Mast Up) | C28: =C33-C37 -> 58.35 m
A29: Air Draft (Mast Down) | C29: =C34-C38 -> -10.00 m
A32: LBP (Between Perpendiculars) | C32: 315.00 m
A33: Keel to Max. Hight (Mast Up) | C33: 68.48 m
A34: Keel to Max. Hight (Mast Down)
A35: Dist. APP to Highest Point (Mast Up) | C35: 42.00 m
A36: Dist. APP to Highest Point (Mast Down)
A37: Draft in the Highest Point (Mast Up) | C37: =(C25-(C35*(SIN(((TANH(C26/C32))/(PI()/180))*(PI()/180))))) -> 10.13 m
A38: Draft in the Highest Point (Mast Down) | C38: =(C25-(C36*(SIN(((TANH(C26/C32))/(PI()/180))*(PI()/180))))) -> 10.00 m
B40: Speed Variables
A41: 1 | B41: Full Ahead | C41: 13.0 | D41: knots
A42: 2 | B42: Half Ahead | C42: 9.8 | D42: knots
A43: 3 | B43: Slow Ahead | C43: 7.7 | D43: knots
A44: 4 | B44: Dead Slow Ahead | C44: 5.5 | D44: knots

Sheet Checklist A
A1: NAV-01 | N1: Doc No : NAV-01
C2: PASSAGE PLAN | N2: Revision: 01 Date: 15 Oct 2024
N3: Issued by: DPA Approved by: MD
A5: Date : | B5: ='Vsl Details'!C5 -> 2006-02-02 | D5: Vessel Name : | G5: ='Vsl Details'!C7 -> M/T Example | O5: Voyage No : | P5: ='Vsl Details'!C9 -> 11
A7: Draft | G7: Port | K7: Berth | O7: Time
A8: Fwd : | B8: ='Vsl Details'!C23 -> 11.00 m | F8: From : | G8: =IF('Vsl Details'!C12="","",'Vsl Details'!C12) -> Singapore | K8: =IF('Vsl Details'!C13="","",'Vsl Details'!C13) ->  | O8: GMT : | P8: ='Vsl Details'!C14 -> 8
A9: Mid : | B9: ='Vsl Details'!C24 -> 10.50 m | F9: To : | G9: =IF('Vsl Details'!C16="","",'Vsl Details'!C16) -> Rotterdam | K9: =IF('Vsl Details'!C17="","",'Vsl Details'!C17) ->  | O9: GMT : | P9: ='Vsl Details'!C18 -> 1
A10: Aft : | B10: ='Vsl Details'!C25 -> 10.00 m | F10: Via : | G10: =IF('Vsl Details'!C20="","",'Vsl Details'!C20) -> Suez | O10: GMT : | P10: ='Vsl Details'!C21 -> 3
A11: Trim : | B11: =B10-B8 -> -01.00 m
A12: Air : | B12: ='Vsl Details'!C28 -> 58.35 m | E12: Total Distance : | H12: ='Sea Passage'!J109 -> 16016.10
J14: Charts: | K14: BA
A15: Coast Pilot Books | C15: NP: 63, 64, 3, 2, 1, 71, 70, 59. | J15: 1111 | K15: 2222 | M15: 3333 | N15: 4444 | O15: 5555 | P15: 6666
A16: Admiralty List of Radio Signals | C16: Vol.1(1), 1(2), 2, 3(1), 3(2), 4,5,6(3), 6(5).
A17: Admiralty List of Lights | C17: Vol D, J, H.
A18: Admiralty Tide Tables | C18: Vol 3, 2.
A19: Tidal Stream Atlas | C19: N/A
A20: Mariner's Handbook | C20: NP 100
A21: Routeing Charts | C21: 5126(7), 5126(8), 5125(8), 5124(8).
A22: Reporting * | C22: See enclosed forms | J22: Reference Charts : | M22: BA
A25: * Procedures on chart & bridge note book
A27: NAVIGATIONAL AIDS | J27: STEAMING TIME | O27: NAVTEX
A28: A | B28: RADAR, ARPA, ECDIS. | J28: Knots | K28: Days | M28: Hours | O28: (B) Bahrain
A29: B | B29: GLOBAL POSITIONING SYSTEM (GPS) | J29: =J30-0.5 -> 11.5 | K29: =Y29 -> 58 | M29: =X29 -> 00.7 | O29: (F) Bandar Abbas | W29: =$H$12/J29 -> 1392.704647 | X29: =MOD(W29,24) -> 1 | Y29: =(W29-X29)/24 -> 58
A30: C | B30: NAVTEX, SAT-C. | J30: =J31-0.5 -> 12.0 | K30: 55 | M30: 14.7 | O30: (M) Masqat | W30: 1334.675286 | X30: 15 | Y30: 55
A31: D | B31: VISUAL BEARINGS. | J31: =J32-0.5 -> 12.5 | K31: 53 | M31: 09.3 | O31: (O) Durban | W31: 1281.288275 | X31: 9 | Y31: 53
A32: E | B32: FACSIMILE (WEATHER FORECAST) | J32: ='Vsl Details'!C41 -> 13.0 | K32: 51 | M32: 08.0 | O32: (I) Porth Elizabeth | W32: 1232.007957 | X32: 8 | Y32: 51
A33: F | B33: ECHO SOUNDER. | J33: =J32+0.5 -> 13.5 | K33: 49 | M33: 10.4 | O33: (C) Cape Town | W33: 1186.378032 | X33: 10 | Y33: 49
A34: G | B34: CELESTIAL NAVIGATION | J34: =J33+0.5 -> 14.0 | K34: 47 | M34: 16.0 | O34: (U)(V) Fundy | W34: 1144.007388 | X34: 16 | Y34: 47
A35: H | B35: TOTAL TIDE USED FOR UKC CALCULATIONS? (Y/N) | H35: YES
B37: NAVAREA | C37: WARNING | G37: CHART AFFECTED
A42: MASTER'S DECLARATION
A43: This is to declare that
A44: A. Company's Minimum Requirement regarding the Under Keel Clearance and air draft can be complied with. Company MUST be advised immediately in case company’s minimum requirements regarding UKC or air draft can not be complied with OR in case UKC or air draft can not be determined due to lack of information from Charterers Prior arrival, Masters must request local agents to provide information relating to prevailing weather conditions which may have an impact on safe navigation. (E.G Strong winds for an extended period of time which could effect depth of water in port, Currents or any other conditions which could have a negative effect).
A45: B. Company's Minimum Requirement regarding the Rest Hours can be complied with (The Marine Manager MUST be advised immediately in case Company’s / STCW minimum requirements regarding Rest Hours cannot be complied with)
A46: C. MARPOL special areas marked/confirmed on the charts
A47: D. Passage Plan complies with security guidelines when transiting the HRA as designated. CSO will be advised if not able to comply with or require deviation to the requirement as listed in company procedures and alternate planning criteria/measures to mitigate the risk with security risk assessment to be taken in consultaion with the CSO.
A48: E. For ECDIS compliant vessels route verification/route check of passage plan has been done to confirm the planned passage safety.
O49: Master
B50: Master's Comment
B51: Passage Planning briefing done by Bridge Team on Date:
B52: Prepared by: | D52: Read & Understood: | I52: Read & Understood: | L52: Read & Understood: | N52: Verified:
B54: Signature: | D54: Signature: | I54: Signature: | L54: Signature: | N54: Signature:
B55: Nav. Off: | D55: 3rd Officer : | I55: Ch. Offr. : | L55: Ch. Eng. : | N55: Master :
B56: Date: | D56: Date: | I56: Date: | L56: Date: | N56: Date:

Sheet Checklist B
A1: NAV-01 | E1: Doc No : NAV-01
B2: PASSAGE PLAN | E2: Revision: 01 Date: 15 Oct 2024
E3: Issued by: DPA Approved by: MD
A5: Passage Plan Appraisal & Checklist
A6: Appraisal & planning of passage to be done using information from relevant sources. Suggested sources are listed below. Click mouse on item to place Ö in boxes to left of items used in appraisal and planning.
A7: Have the navigation charts been selected from chart catalogue, including
B8: Large scale charts for coastal waters | E8: Planning Charts
B9: Small scale charts for ocean passages | E9: Climatic and Pilot Charts
B10: Planning Charts | E10: Load line Zone Charts
B11: Routeing Charts
A12: Have the publication been selected, including
B13: Ocean Passages of the World | E13: Bridge Procedures guide
B14: Sailing Directions | E14: Guide to Port Entry
B15: Current & Tidal Stream Atlases | E15: Port information from any source
B16: Tidal Tables | E16: List of Lights
B17: Distance Tables | E17: Radio Signals
B18: Ship's Manouvering Data
A19: Have all navigation charts and publications have been corrected upto date, including
A20: All Charts & Publications are corrected to NTM to WK
B21: Ordering of new charts / publications | E21: Local area warnings
B22: Notices to Mariners | E22: NAVAREA navigational warnings
A23: Have the following been considered ?
B24: Ship's Departure & Arrival drafts
B25: Tidal Windows available
B26: Tidal Currents
B27: Ship's cargo and any special cargo stowage / carriage restrictions
B28: If there are any special ship operational requirements for the passage
A29: Have the following been checked ?
B30: Climatogical Data | E30: Navigational Aids available
B31: Weather Forecast | E31: Navigational Hazards & Warnings
B32: Weather Routeing | E32: Traffic Separation & Routeing Schemes
B33: Navigation Charts & Publications for Vessel Traffic Scheme & Port Reporting Systems
A34: Have the following been marked on the charts ?
B35: Parallel Index Lines | E35: Wheel over Position
B36: Chart Changes | E36: Clearing Lines & bearings
B37: Methods & frequency of position fixing | E37: Transits, heading marks & leading lines
B38: No-Go Areas, Prominent navigation and radar marks, UKC, Safe distance off, Air Darft. | E38: Significant tides & current
B39: Landfall targets and Lights | E39: Safe speed & necessary speed alterations
B40: Position where echosounder would be activated | E40: Status of Engine Room
B41: Anchor clearance | E41: Status of Bridge Watch Level
B42: Abort Position ( Port / Channel / Berth Approach ) | E42: Crossing and High traffic density areas
B43: T & P Corrections | E43: Enviromental Sensitive Area
B44: Vessel Contigency Plans & contigency Anchoring area | E44: VTS & Reporting points
B45: Emission Control Areas Entry and Exit points | E45: Fuel Oil Change over for ECA region
A46: Have the following preparations been made for port arrival ?
B47: Navigational Charts & publications studies for pilotage requirements
B48: NAV-05 & NAV-02 as part of Bridge Pilot Information Exchange
B49: NAV 04 Pilot Card
B50: Port guides studied for port information including arrival / berthing restrictions
A51: Other Checks
B52: The Chief Engineer in consulatation with the master determine in advance the needs of the intended voyage taking into requirements of fuel, water , lubricantrs , chemicals , expendable and other spare parts , tools , supplies and any other requirement
B53: Flags are available for countries in the intended voyage - 3rd Officer
B54: Vessel complying with IMO Intact stability requirements & Bridge Visibility Criteria - Chief Officer
B55: Ballast exchange requirments known and planned complyting with requirements - Chief Officer
B56: Compliance to Emission Control Area low sulphur fuel oil regulations,change over procedure,required quantity of LSFO/LSMGO planned with C/E.
B57: MARPOL Convention‘s annexes/special areas marked-activated
A59: ___________ __________ ___________ _____________ ___________
A60: 2nd Officer 3rd Officer Chief Officer Chief Engineer Master

Sheet Checklist C
A3: ECDIS - Voyage Plan - Checklist - (To be used for vessels fitted with ECDIS)
A4: Voyage From: | E4: To:
K5: Yes | L5: No | M5: N/A
B6: General
A7: 1 | B7: S57 ENC Charts with Permit for the entire voyage available in the ECDIS Catalogue & installed?
A8: 2 | B8: S57 ENC Charts updated with latest Base and Update CDs?
A9: 3 | B9: Latest AIO CD installed on the system and confirmed that all T & P and NAV warnings are showing on the ECDIS.
A10: 4 | B10: ENC/ ECDIS Data presenattion & performance cheks completed as per MSC.1/Circ.1391
A11: 5 | B11: Is the route prepared using safe settings for Draught, Safety Contour, and Depth Contours in compliance with company Under Keel Clearance policy and with due regards to Squat Effect (Including Trim & Heel?)
A12: 6 | B12: Estimated speed for each leg entered into voyage plan?
A13: 7 | B13: Channel width set to a minimum of 2NM at open sea (if possible)
A14: 8 | B14: Check of WGS-84 datum in GPS, ECDIS and used charts? (ENC vector charts according to S57 standard is produced in the WGS-84 datum)
A15: 9 | B15: Calculated ETA in route planning tool using present departure date?
A16: 10 | B16: CPA/ TCPA & Safety Frame ( Look Ahead) parameters correctly set up
B17: USER MAP and NOTES created and/or updated for the voyage? Containing as a minimum the followed items:
A18: 11 | B18: Pilot reporting points?
A19: 12 | B19: Mandatory reporting points?
A20: 13 | B20: Point of no return for narrow passages?
A21: 14 | B21: Contingency anchorages?
A22: 15 | B22: No Go Areas (Using Channel Limits and User Danger Areas in User Chart)?
A23: 16 | B23: Conspicuous targets for positions fixing and cross checking reference?
A24: 17 | B24: Parallel indexing?
A25: 18 | B25: Areas with high speed vessels?
A26: 19 | B26: Relevant Navtex warnings and T&P's entered using Manual updates and Notes?
A27: 20 | B27: Echo sounder programmed in DBS mode? Vessel draught + UKC?
A28: 21 | B28: Voyage plan, notes and user MAP switched to monitoring mode?
A29: 22 | B29: Voyage Log, Distance Log reset?
A30: 23 | B30: Line of Position ( LOP) and Frequency entered?
A31: Chart Alert setting used for planning the route: | K31: Alarm | L31: Ind. | M31: Off
B32: Traffic Seperation Zone
B33: Traffic Crossing
B34: Traffic Roundabout
B35: Traffic Precautionary
B36: Two Way Traffic
B37: Deep Water Route
B38: Recommended Traffic Lane
A43: Chart Alert setting used for planning the route: | K43: Alarm | L43: Ind. | M43: Off
B44: Inshore Traffic Zone
B45: Fairway
B46: Restricted Area
B47: Caution Area
B48: Offshore Production Area
B49: Military Practice Area
B50: Seaplane Landing Area
B51: Submarine Transit Area
B52: Ice Area
B53: Channel
B54: Fishing Ground
B55: Fishing Prohibited
B56: Pipeline Area
B57: Cable Area
B58: Achorage Area
B59: Anchorage prohibited
B60: Spoil Ground
B61: Dumping Ground
B62: Dredge Area
B63: Cargo Transhipment Area
B64: Incineration Area
B65: Specially Protected Area
B66: Sensitive Sea Area
B67: Archipelagic Sealane
B68: Marine Farm/Aquaculture
A69: The methods to be used for cross-checking are by all other means available - such as visual bearings, radar position by brg/dist, parallel index etc. It is important for the navigator to practice all the traditional navigational skills and not to be overly confident in the informationfrom the ECDIS. During the voyage GPS signal quality should be monitored continuously.
A70: Navigating Off. | D70: 3RD Off. | G70: CH/Off. | J70: Master

Sheet Master Comment
A2: Additional Remarks
A3: ( Please enter remarks regarding anticipated Ocean currents, Visibility & Other Meterological Conditions; Areas of high traffic density ; Ship operations which may require additional searoom e.g tank cleaning or pilot embarkation ; the availability and reliability of navigation aids, marks lights and radar consipicous objects etc )
A21: Master's Comments (navigation related instructions in the charterers voyage orders / past experience etc.)
A23: Ensure that the post voyage review is completed under the dedicated tab after the voyage is completed.
A49: Master :
A50: Signature :

Sheet Departure Port Info
A3: PORT OF DEPARTURE INFORMATION
A4: Passage Plan Name on ECDIS
A5: User Chart name on ECDIS
A6: Name of Departure Berth
A7: VHF Channel(s) - Port Control
A8: VHF Channel(s) - VTS
A9: VHF Channel(s) - Pilots
A10: Tidal Information
A11: Standard Port
A12: Date
B13: TIME | C13: HEIGHT
A14: High Water | D14: Mtrs
A15: Low Water | D15: =$D$14 -> Mtrs
A16: High Water | D16: =$D$14 -> Mtrs
A17: Low Water | D17: =$D$14 -> Mtrs
A18: Estimated Draft on Departure
A19: Forward | C19: Mtrs
A20: Aft | C20: Mtrs
A21: Mean | C21: Mtrs
A22: Vessel’s Maximum Air-draft | C22: Mtrs
A23: Distance - Berth to Pilot Station | C23: NM
A24: Estimated Time to Pilot Station | C24: Hours
A25: Is There a Change of Pilots?
A26: If Yes, Where
A27: Number of Tugs
A28: Location Tugs will Leave Vessel
A29: Remarks: (General route, channel to use, special precaution, etc)
A31: Prevailing Current / Weather Information

Sheet Dep Port Safety Setting
A1: Safety Setting Departure Port
A2: Beam: | B2: 32 | C2: Cb: | D2: 0.7786
A3: AREA | B3: Ocean Passage (Open) | C3: Fairways outside ports (Coastal / Shallow waters) | D3: Fairways inside ports (Within Port Limits / Restricted Waters) | E3: Remarks
A4: MAX. SPEED | B4: 12.50 | C4: 12.50 | D4: 5.00
A5: DEEPEST DRAFT | B5: 9.85 | C5: 9.85 | D5: 9.85 | E5: Static Draft
A6: TOTAL CALCULATED SQUAT | B6: 1.50 | C6: 1.50 | D6: 0.40
A7: SAFETY MARGIN | B7: 2.00 | C7: 0.50 | D7: 0.40 | E7: Ensure it is equal to A3 in NAV 02 (Catzoc Consideration Tab).
A8: MINIMUM UKC REQUIRED | B8: =(B5+B6+B7)/2 -> 6.68 | C8: =(C5+C6+C7)*0.15 -> 1.78 | D8: =IF(F8>G8,F8,G8) -> 0.60 | F8: =B2*0.015 -> 0.48 | G8: 0.6
A9: TIDE | B9: 2.00 | C9: 1.50 | D9: 1.30
A10: SAFETY DEPTH | B10: =IF((B5+B6+B8+B7-B9)<B5,ROUNDUP(B5,0),ROUNDUP((B5+B6+B8+B7-B9),0)) -> 19.00 | C10: =IF((C5+C6+C8+C7-C9)<C5,ROUNDUP(C5,0),ROUNDUP((C5+C6+C8+C7-C9),0)) -> 13.00 | D10: =IF((D5+D6+D8+D7-D9)<D5,ROUNDUP(D5,0),ROUNDUP((D5+D6+D8+D7-D9),0)) -> 10.00
A11: SAFETY CONTOUR | B11: =B10 -> 19.00 | C11: =C10 -> 13.00 | D11: =D10 -> 10.00
A12: SHALLOW CONTOUR | B12: =IF(ROUNDUP((B5+1),0)>=B11,B5,ROUNDUP((B5+1),0)) -> 11.00 | C12: =IF(ROUNDUP((C5+1),0)>=C11,C5,ROUNDUP((C5+1),0)) -> 11.00 | D12: 9.85
A13: DEEP CONTOUR | B13: =ROUNDUP((F13*2),0) -> 23.00 | C13: =ROUNDUP((G13*2),0) -> 23.00 | D13: =ROUNDUP((H13*2),0) -> 21.00 | F13: =B5+B6 -> 11.35 | G13: =C5+C6 -> 11.35 | H13: =D5+D6 -> 10.25
A14: Look Ahead Settings | E14: FOM 3.29 Section 5.6
A15: Cross Track Distance | E15: FOM 3.29 Section 5.8
A17: SHALLOW CONTOUR = Next contour shallower than safety contour/must not be less than vessel’s draft
A18: SAFETY DEPTH = Vessel Draft + Dynamic Squat + UKC + Safety Margin - Height of Tide
A19: SAFETY CONTOUR = Safety contour should be set at a value equal to the safety depth
A20: DEPTH CONTOUR = Twice the Dynamic Draft (Max. Static draft + Squat)
A21: ECHO SOUNDER = Ensure alarm, if fitted, is used for safe navigation.
A22: NOTE (when marking NO GO AREA on ECDIS):
A24: Shallow Contour should not be confused by the wording 'contour'. The safe/unsafe contour for Navigation is the safety contour. A shallow contour is only for additional indication of the underwater topography of the already 'un-safe' water; it is not calculation between draft and tide values. Reminding once again that the safety of the navigation is only to be dependent upon the 'Safety Contour' & 'Safety Depth' mentioned above.
A25: All ECDIS parameters set prior to the beginning of the voyage must not be removed/changed/de-activated without permission from the Master. Any safety parameters to be re-set to original settings after planning/trial/simulation mode
A27: Prepared by :
B28: Second Officer
A30: Calculation confirmed by :
B31: Master

Sheet Berth to Pilot
B3: All dates & times are GMT | L3: =+'Vsl Details'!C7 -> M/T Example
B4: PILOTS | D4: SPD | F4: Voy : | G4: =+'Vsl Details'!C9 -> 11 | H4: =+'Vsl Details'!C10 -> Loaded | K4: Time
B5: 2005-07-22T12:00:00 | D5: 14.3 | F5: From : | G5: ='Checklist A'!$G$8 -> Singapore | K5: =+'Vsl Details'!C14 -> 8 | L5: To : | M5: ='Checklist A'!$G$9 -> Rotterdam | P5: =+'Vsl Details'!C18 -> 1 | W5: Berth to Pilot
A7: WP No. | B7: GEOGRAPHICAL AREA WAYPOINT | C7: LATITUDE | F7: LONGITUDE | I7: CO | J7: DIST. TO NEXT WP | K7: DTG | L7: RL/GC | M7: Verification Freq / Method | Q7: Max Spd (kts) | R7: T&P Notices | S7: Safety Setting | T7: UKC | U7: MARPOL Special area / ECA Zone | V7: Security Level | W7: Remarks: NAV Aids, Restrictions, Weather, Cautions, Traffic Density, UKC, Tides etc, T&P notice number effecting each leg, extra lookout if passing through HRA, Area where vessel should be hardened. | X7: Watch Level
AA8: latrad | AB8: longrad | AC8: dlon_W | AD8: dlon_E | AE8: dphi | AF8: q1 | AG8: q | AH8: dlon_min | AI8: tc_rad | AJ8: tc | AK8: dist_rad | AL8: dist | BQ8: Yes
C9: DEG | D9: MIN | E9: N/S | F9: DEG | G9: MIN | H9: E/W | M9: Freq | N9: Main | O9: Alt 1 | P9: Alt 2 | U9: Yes / No | X9: Bridge | Y9: E/R | BQ9: No | CH9: Course | CI9: Distance
A10: BP 1 | B10: PILOT STATION | C10: 27° | D10: 00.00` | E10: S | F10: 160° | G10: 09.00` | H10: E | I10: =IF(C11="","",IF(AD10<AC10,360-AJ10,AJ10)) -> 028° | J10: =IF(C11="",0,+AL10) -> 3674.5 | K10: =+J40 -> 16016.1 | M10: < 1 h | N10: Vis | O10: Rdr | P10: Gps | R10: Yes | S10: Ocean Passage (Open) | U10: Yes | V10: Level 1 | AA10: =IF(E10="N",RADIANS(C10+(D10/60)),-RADIANS(C10+(D10/60))) -> -0.471238898 | AB10: =IF(H10="E",+RADIANS(F10+(G10/60)),-RADIANS(F10+(G10/60))) -> 2.795144797 | AC10: =MOD(AB11-AB10,2*PI()) -> 0.5175483009 | AD10: =MOD(AB10-AB11,2*PI()) -> 5.765637006 | AE10: =LN(TAN(AA11/2+PI()/4)/TAN(AA10/2+PI()/4)) -> 0.9831883811 | AF10: =COS(AA10) -> 0.8910065242 | AG10: =IF(AA11=AA10,AF10,(AA11-AA10)/AE10) -> 0.9619957159 | AH10: =MIN(AC10,AD10) -> 0.5175483009 | AI10: =MOD(ATAN2(AE10,AH10),2*PI()) -> 0.4845422274 | AJ10: =DEGREES(AI10) -> 27.8 | AK10: =SQRT(AG10^2*AH10^2+(AA11-AA10)^2) -> 1.068861503 | AL10: =DEGREES(AK10)*60 -> 3674.5 | BQ10: Level 1 | CH10: =I10 -> 27.76222 | CI10: =J10 -> 3674.4752
A11: BP 2 | B11: GHAR BUOY | C11: 27° | D11: 11.50` | E11: N | F11: 170° | G11: 11.80` | H11: W | I11: 270° | J11: 7410.1 | K11: =+K10-J10 -> 12341.6 | M11: < 1 h | N11: Vis | O11: Rdr | P11: Gps | S11: Fairways outside ports (Coastal / Shallow waters) | AA11: =IF(E11="N",RADIANS(C11+(D11/60)),-RADIANS(C11+(D11/60))) -> 0.4745841124 | AB11: =IF(H11="E",+RADIANS(F11+(G11/60)),-RADIANS(F11+(G11/60))) -> -2.970492209 | AC11: =MOD(AB12-AB11,2*PI()) -> 3.859882907 | AD11: =MOD(AB11-AB12,2*PI()) -> 2.4233024 | AE11: =LN(TAN(AA12/2+PI()/4)/TAN(AA11/2+PI()/4)) -> -3.270282687e-05 | AF11: =COS(AA11) -> 0.8894828461 | AG11: =IF(AA12=AA11,AF11,(AA12-AA11)/AE11) -> 0.8894894923 | AH11: =MIN(AC11,AD11) -> 2.4233024 | AI11: =MOD(ATAN2(AE11,AH11),2*PI()) -> 1.570809822 | AJ11: =DEGREES(AI11) -> 90.0 | AK11: =SQRT(AG11^2*AH11^2+(AA12-AA11)^2) -> 2.155502022 | AL11: =DEGREES(AK11)*60 -> 7410.1 | BQ11: Level 2 | CH11: 269.99923 | CI11: 7410.0701
A12: BP 3 | B12: RAS TANNURAH RACON (K) | C12: 27° | D12: 11.40` | E12: N | F12: 050° | G12: 57.50` | H12: E | I12: 099° | J12: 60.8 | K12: =+K11-J11 -> 4931.6 | M12: < 1 h | N12: Vis | O12: Rdr | P12: Gps | S12: Fairways inside ports (Within Port Limits / Restricted Waters) | AA12: =IF(E12="N",RADIANS(C12+(D12/60)),-RADIANS(C12+(D12/60))) -> 0.4745550236 | AB12: =IF(H12="E",+RADIANS(F12+(G12/60)),-RADIANS(F12+(G12/60))) -> 0.889390698 | AC12: 0.01963495408 | AD12: 6.263550353 | AE12: -0.003071889606 | AF12: 0.8894961384 | AG12: 0.8901196046 | AH12: 0.01963495408 | AI12: 1.725988348 | AJ12: 98.9 | AK12: 0.01769005903 | AL12: 60.8 | BQ12: Level 3 | CH12: 98.89185 | CI12: 60.8139
A13: BP 4 | B13: FIELD | C13: 27° | D13: 02.00` | E13: N | F13: 052° | G13: 05.00` | H13: E | I13: 132° | J13: 30.0 | K13: 4870.7 | M13: < 1 h | N13: Vis | O13: Rdr | P13: Gps | AA13: 0.4718206745 | AB13: 0.9090256521 | AC13: 0.007272205217 | AD13: 6.275913102 | AE13: -0.006521728036 | AF13: 0.8907422525 | AG13: 0.8920586907 | AH13: 0.007272205217 | AI13: 2.301841754 | AJ13: 131.9 | AK13: 0.00871381565 | AL13: 30.0 | BQ13: Ocean Passage (Open) | BR13: Fairways outside ports (Coastal / Shallow waters) | BS13: Fairways inside ports (Within Port Limits / Restricted Waters) | CH13: 131.88582 | CI13: 29.9559
A14: BP 5 | B14: CABLE BANK | C14: 26° | D14: 42.00` | E14: N | F14: 052° | G14: 30.00` | H14: E | I14: 106° | J14: 104.6 | K14: 4840.8 | M14: < 1 h | N14: Vis | O14: Rdr | P14: Gps | AA14: 0.4660029103 | AB14: 0.9162978573 | AC14: 0.03257947937 | AD14: 6.250605828 | AE14: -0.009649705906 | AF14: 0.8933713883 | AG14: 0.8952998031 | AH14: 0.03257947937 | AI14: 1.858753769 | AJ14: 106.5 | AK14: 0.0304209554 | AL14: 104.6 | CH14: 106.49875 | CI14: 104.5795
A15: BP 6 | B15: FORUR ISLAND | C15: 26° | D15: 12.30` | E15: N | F15: 054° | G15: 22.00` | H15: E | I15: 097° | J15: 50.2 | K15: 4736.2 | M15: < 1 h | N15: Vis | O15: Rdr | P15: Gps | AA15: 0.4573635305 | AB15: 0.9488773367 | AC15: 0.01614429558 | AD15: 6.267041012 | AE15: -0.001879642259 | AF15: 0.8972198376 | AG15: 0.8975918702 | AH15: 0.01614429558 | AI15: 1.686702132 | AJ15: 96.6 | AK15: 0.0145888734 | AL15: 50.2 | CH15: 96.64091 | CI15: 50.1529
A16: BP 7 | B16: TONBE ISLAND | C16: 26° | D16: 06.50` | E16: N | F16: 055° | G16: 17.50` | H16: E | I16: 070° | J16: 11.9 | K16: 4686.1 | M16: < 1 h | N16: Vis | O16: Rdr | P16: Gps | AA16: 0.4556763789 | AB16: 0.9650216322 | AC16: 0.003636102608 | AD16: 6.279549205 | AE16: 0.001296138279 | AF16: 0.8979635797 | AG16: 0.8977073305 | AH16: 0.003636102608 | AI16: 1.228374921 | AJ16: 70.4 | AK16: 0.003465338276 | AL16: 11.9 | CH16: 70.38070 | CI16: 11.9130
A17: BP 8 | B17: TSS OUT | C17: 26° | D17: 10.50` | E17: N | F17: 055° | G17: 30.00` | H17: E | I17: 067° | J17: 51.7 | K17: 4674.1 | M17: < 1 h | N17: Vis | O17: Rdr | P17: Gps | AA17: 0.4568399317 | AB17: 0.9686577349 | AC17: 0.01541707506 | AD17: 6.267768232 | AE17: 0.006654402881 | AF17: 0.8974509275 | AG17: 0.896129733 | AH17: 0.01541707506 | AI17: 1.163327224 | AJ17: 66.7 | AK17: 0.0150477042 | AL17: 51.7 | CH17: 66.65374 | CI17: 51.7302
A18: BP 9 | B18: TSS HORMUZ 1 | C18: 26° | D18: 31.00` | E18: N | F18: 056° | G18: 23.00` | H18: E | I18: 065° | J18: 5.7 | K18: 4622.4 | M18: < 1 h | N18: Vis | O18: Rdr | P18: Gps | AA18: 0.46280314 | AB18: 0.9840748099 | AC18: 0.00168715161 | AD18: 6.281498156 | AE18: 0.0007803417977 | AF18: 0.8948045301 | AG18: 0.894648605 | AH18: 0.00168715161 | AI18: 1.13757947 | AJ18: 65.2 | AK18: 0.001663039351 | AL18: 5.7 | CH18: 65.17850 | CI18: 5.7171
A19: BP 10 | B19: TSS HORMUZ 2 | C19: 26° | D19: 33.40` | E19: N | F19: 056° | G19: 28.80` | H19: E | I19: 090° | J19: 3.6 | K19: 4616.7 | M19: < 1 h | N19: Vis | O19: Rdr | P19: Gps | AA19: 0.4635012717 | AB19: 0.9857619615 | AC19: 0.001163552835 | AD19: 6.282021754 | AE19: 0 | AF19: 0.8944926255 | AG19: 0.8944926255 | AH19: 0.001163552835 | AI19: 1.570796327 | AJ19: 90.0 | AK19: 0.00104078943 | AL19: 3.6 | CH19: 90.00000 | CI19: 3.5780
A20: BP 11 | B20: TSS HORMUZ 3 | C20: 26° | D20: 33.40` | E20: N | F20: 056° | G20: 32.80` | H20: E | I20: 149° | J20: 62.1 | K20: 4613.1 | M20: < 1 h | N20: Vis | O20: Rdr | P20: Gps | AA20: 0.4635012717 | AB20: 0.9869255144 | AC20: 0.01023926495 | AD20: 6.272946042 | AE20: -0.01729925893 | AF20: 0.8944926255 | AG20: 0.8979246106 | AH20: 0.01023926495 | AI20: 2.607157448 | AJ20: 149.4 | AK20: 0.01805044908 | AL20: 62.1 | CH20: 149.37912 | CI20: 62.0529
A21: BP 12 | B21: RAS AL KUH 1 | C21: 25° | D21: 40.00` | E21: N | F21: 057° | G21: 08.00` | H21: E | I21: 140° | J21: 13.1 | K21: 4551.1 | M21: < 1 h | N21: Vis | O21: Rdr | P21: Gps | AA21: 0.4479678413 | AB21: 0.9971647793 | AC21: 0.002705260341 | AD21: 6.280480047 | AE21: -0.003225075904 | AF21: 0.9013291614 | AG21: 0.9019577131 | AH21: 0.002705260341 | AI21: 2.443624675 | AJ21: 140.0 | AK21: 0.003796754337 | AL21: 13.1 | CH21: 140.00938 | CI21: 13.0523
A22: BP 13 | B22: RAS AL KUH 2 | C22: 25° | D22: 30.00` | E22: N | F22: 057° | G22: 17.30` | H22: E | I22: 136° | J22: 124.5 | K22: 4538.0 | M22: < 1 h | N22: Vis | O22: Rdr | P22: Gps | AA22: 0.4450589593 | AB22: 0.9998700396 | AC22: 0.02754711336 | AD22: 6.255638194 | AE22: -0.02882915937 | AF22: 0.9025852843 | AG22: 0.9081062144 | AH22: 0.02754711336 | AI22: 2.378931451 | AJ22: 136.3 | AK22: 0.03621014613 | AL22: 124.5 | CH22: 136.30273 | CI22: 124.4813
A23: BP 14 | B23: 24° NORTH | C23: 24° | D23: 00.00` | E23: N | F23: 058° | G23: 52.00` | H23: E | I23: 136° | J23: 110.5 | K23: 4413.5 | M23: < 1 h | N23: Vis | O23: Rdr | P23: Gps | AA23: 0.4188790205 | AB23: 1.027417153 | AC23: 0.02414372132 | AD23: 6.259041586 | AE23: -0.02534455349 | AF23: 0.9135454576 | AG23: 0.918187677 | AH23: 0.02414372132 | AI23: 2.380454713 | AJ23: 136.4 | AK23: 0.0321400533 | AL23: 110.5 | CH23: 136.39001 | CI23: 110.4894
A24: BP 15 | B24: RAS AL HADD | C24: 22° | D24: 40.00` | E24: N | F24: 060° | G24: 15.00` | H24: E | I24: 180° | J24: 40.0 | K24: 4303.0 | M24: < 1 h | N24: Vis | O24: Rdr | P24: Gps | AA24: 0.3956079638 | AB24: 1.051560874 | AC24: 0 | AD24: 0 | AE24: -0.01257919674 | AF24: 0.9227624444 | AG24: 0.924981824 | AH24: 0 | AI24: 3.141592654 | AJ24: 180.0 | AK24: 0.01163552835 | AL24: 40.0 | CH24: =I24 -> 180.00000 | CI24: =J24 -> 40.0000
A25: BP 16 | B25: RAS QUMAYLAH | C25: 22° | D25: 00.00` | E25: N | F25: 060° | G25: 15.00` | H25: E | I25: 204° | J25: 618.9 | K25: 4263.0 | M25: < 1 h | N25: Vis | O25: Rdr | P25: Gps | AA25: 0.3839724354 | AB25: 1.051560874 | AC25: 6.206099932 | AD25: 0.0770853753 | AE25: -0.1723632862 | AF25: 0.9271838546 | AG25: 0.953519984 | AH25: 0.0770853753 | AI25: 2.721047825 | AJ25: 155.9 | AK25: 0.1800392628 | AL25: 618.9 | CH25: 204.09544 | CI25: 618.9294
A26: BP 17 | B26: SUQUTRA | C26: 12° | D26: 35.00` | E26: N | F26: 055° | G26: 50.00` | H26: E | I26: 209° | J26: 1647.4 | K26: 3644.1 | M26: < 1 h | N26: Vis | O26: Rdr | P26: Gps | AA26: 0.2196205975 | AB26: 0.974475499 | AC26: 6.051347405 | AD26: 0.2318379023 | AE26: -0.4234819293 | AF26: 0.9759801759 | AG26: 0.9925652842 | AH26: 0.2318379023 | AI26: 2.640704382 | AJ26: 151.3 | AK26: 0.4792001549 | AL26: 1647.4 | CH26: 208.69878 | CI26: 1647.3688
A27: BP 18 | B27: COMORES | C27: 11° | D27: 30.00` | E27: S | F27: 042° | G27: 33.00` | H27: E | I27: 198° | J27: 284.7 | K27: 1996.7 | M27: < 1 h | N27: Vis | O27: Rdr | P27: Gps | AA27: -0.200712864 | AB27: 0.7426375967 | AC27: 6.256132704 | AD27: 0.02705260341 | AE27: -0.08088029244 | AF27: 0.9799247046 | AG27: 0.9710624674 | AH27: 0.02705260341 | AI27: 2.818813088 | AJ27: 161.5 | AK27: 0.08281668583 | AL27: 284.7 | CH27: 198.49391 | CI27: 284.7028
A28: BP 19 | B28: MOZAMBIQUE | C28: 16° | D28: 00.00` | E28: S | F28: 041° | G28: 00.00` | H28: E | I28: 208° | J28: 606.4 | K28: 1712.0 | M28: < 1 h | N28: Vis | O28: Rdr | P28: Gps | AA28: -0.2792526803 | AB28: 0.7155849933 | AC28: 6.194464404 | AD28: 0.08872090364 | AE28: -0.1663165438 | AF28: 0.9612616959 | AG28: 0.9357168451 | AH28: 0.08872090364 | AI28: 2.651547575 | AJ28: 151.9 | AK28: 0.1763834729 | AL28: 606.4 | CH28: 208.07751 | CI28: 606.3617
A29: BP 20 | B29: PUNTA ZAVORA | C29: 24° | D29: 55.00` | E29: S | F29: 035° | G29: 55.00` | H29: E | I29: 216° | J29: 285.7 | K29: 1105.7 | M29: < 1 h | N29: Vis | O29: Rdr | P29: Gps | AA29: -0.434877872 | AB29: 0.6268640897 | AC29: 6.227916548 | AD29: 0.05526875965 | AE29: -0.0749987788 | AF29: 0.9069215016 | AG29: 0.8920716986 | AH29: 0.05526875965 | AI29: 2.506509736 | AJ29: 143.6 | AK29: 0.08310859294 | AL29: 285.7 | CH29: 216.38757 | CI29: 285.7063
A30: BP 21 | B30: CAPE SANTA LUCIA | C30: 28° | D30: 45.00` | E30: S | F30: 032° | G30: 45.00` | H30: E | I30: 216° | J30: 159.3 | K30: 820.0 | M30: < 1 h | N30: Vis | O30: Rdr | P30: Gps | AA30: -0.5017821599 | AB30: 0.57159533 | AC30: 6.251594848 | AD30: 0.03159045946 | AE30: -0.04305439351 | AF30: 0.8767267557 | AG30: 0.8675083528 | AH30: 0.03159045946 | AI30: 2.508583514 | AJ30: 143.7 | AK30: 0.04632557903 | AL30: 159.3 | CH30: 216.26875 | CI30: 159.2556
A31: BP 22 | B31: SOUTH OF DURBAN | C31: 30° | D31: 53.40` | E31: S | F31: 030° | G31: 56.40` | H31: E | I31: 220° | J31: 208.9 | K31: 660.7 | M31: < 1 h | N31: Vis | O31: Rdr | P31: Gps | AA31: -0.5391322059 | AB31: 0.5400048706 | AC31: 6.236817727 | AD31: 0.04636758046 | AE31: -0.05488516738 | AF31: 0.8581545225 | AG31: 0.8458707574 | AH31: 0.04636758046 | AI31: 2.44011893 | AJ31: 139.8 | AK31: 0.06077529366 | AL31: 208.9 | CH31: 220.19148 | CI31: 208.9301
A32: BP 23 | B32: EAST LONDON | C32: 33° | D32: 33.00` | E32: S | F32: 028° | G32: 17.00` | H32: E | I32: 241° | J32: 87.1 | K32: 451.8 | M32: < 1 h | N32: Vis | O32: Rdr | P32: Gps | AA32: -0.585557964 | AB32: 0.4936372901 | AC32: 6.256423592 | AD32: 0.0267617152 | AE32: -0.01471960065 | AF32: 0.8334038487 | AG32: 0.8300024611 | AH32: 0.0267617152 | AI32: 2.073658394 | AJ32: 118.8 | AK32: 0.02535050965 | AL32: 87.1 | CH32: 241.18813 | CI32: 87.1486
A33: BP 24 | B33: WEST OF CAPE RECIFE | C33: 34° | D33: 15.00` | E33: S | F33: 026° | G33: 45.00` | H33: E | I33: 257° | J33: 96.6 | K33: 364.6 | M33: < 1 h | N33: Vis | O33: Rdr | P33: Gps | AA33: -0.5977752688 | AB33: 0.4668755749 | AC33: 6.250024051 | AD33: 0.03316125579 | AE33: -0.007759069702 | AF33: 0.8265897491 | AG33: 0.8247819437 | AH33: 0.03316125579 | AI33: 1.800641423 | AJ33: 103.2 | AK33: 0.02808951146 | AL33: 96.6 | CH33: 256.83085 | CI33: 96.5646
A34: BP 25 | B34: CAPE ST. FRANCIS | C34: 34° | D34: 37.00` | E34: S | F34: 024° | G34: 51.00` | H34: E | I34: 266° | J34: 124.4 | K34: 268.1 | M34: < 1 h | N34: Vis | O34: Rdr | P34: Gps | AA34: -0.6041748094 | AB34: 0.4337143191 | AC34: 6.239261188 | AD34: 0.04392411951 | AE34: -0.002829964151 | AF34: 0.8229711547 | AG34: 0.8223092397 | AH34: 0.04392411951 | AI34: 1.635135878 | AJ34: 93.7 | AK34: 0.03619409762 | AL34: 124.4 | CH34: 266.31362 | CI34: 124.4261
A35: BP 26 | B35: TSS IN | C35: 34° | D35: 45.00` | E35: S | F35: 022° | G35: 20.00` | H35: E | I35: 262° | J35: 78.8 | K35: 143.6 | M35: < 1 h | N35: Vis | O35: Rdr | P35: Gps | AA35: -0.6065019151 | AB35: 0.3897901996 | AC35: 6.255550927 | AD35: 0.02763437982 | AE35: -0.004076091648 | AF35: 0.8216469379 | AG35: 0.8206916548 | AH35: 0.02763437982 | AI35: 1.717241125 | AJ35: 98.4 | AK35: 0.02292468823 | AL35: 78.8 | CH35: 261.60933 | CI35: 78.8093
A36: BP 27 | B36: TSS OUT | C36: 34° | D36: 56.50` | E36: S | F36: 020° | G36: 45.00` | H36: E | I36: 245° | J36: 36.0 | K36: 64.8 | M36: < 1 h | N36: Vis | O36: Rdr | P36: Gps | AA36: -0.6098471295 | AB36: 0.3621558198 | AC36: 6.271549779 | AD36: 0.01163552835 | AE36: -0.005330989306 | AF36: 0.8197355828 | AG36: 0.8184828143 | AH36: 0.01163552835 | AI36: 2.000419306 | AJ36: 114.6 | AK36: 0.01047545989 | AL36: 36.0 | CH36: 245.38442 | CI36: 36.0120
A37: BP 28 | B37: CAPE AGULHAS | C37: 35° | D37: 11.50` | E37: S | F37: 020° | G37: 05.00` | H37: E | I37: 277° | J37: 28.8 | K37: 28.8 | M37: < 1 h | N37: Vis | O37: Rdr | P37: Gps | AA37: -0.6142104526 | AB37: 0.3505202914 | AC37: 6.27300422 | AD37: 0.0101810873 | AE37: 0.001245359539 | AF37: 0.8172287284 | AG37: 0.817521927 | AH37: 0.0101810873 | AI37: 1.449080101 | AJ37: 83.0 | AK37: 0.008385298895 | AL37: 28.8 | CH37: 276.97383 | CI37: 28.8265
A38: BP 29 | B38: QUOIN POINT | C38: 35° | D38: 08.00` | E38: S | F38: 019° | G38: 30.00` | H38: E | J38: 0.0 | K38: -0.0 | M38: < 1 h | N38: Vis | O38: Rdr | P38: Gps | AA38: -0.6131923439 | AB38: 0.3403392041 | AC38: 5.942846103 | AD38: 0.3403392041 | AE38: 0.6556797708 | AF38: 0.8178150545 | AG38: 0.9352009489 | AH38: 0.3403392041 | AI38: 0.4787815606 | AJ38: 27.4 | AK38: 0.6908766459 | AL38: 2375.1 | CI38: 0.0000
A39: BP 30 | I39: =IF(C39="","",IF(AD39<AC39,360-AJ39,AJ39)) ->  | J39: =IF(C39="",0,+AL39) -> 0.0 | K39: =+K38-J38 -> -0.0 | M39: < 1 h | N39: Vis | O39: Rdr | P39: Gps | AA39: 0 | AB39: 0 | AE39: 0 | AF39: 1 | AG39: 1 | CI39: 0.0000
F40: TOTAL DISTANCE: | J40: =SUM(J10:J39) -> 16016.1

Sheet Sea Passage Safety Setting
A1: Safety Setting Sea Passage
A2: Beam: | B2: 32 | C2: Cb: | D2: 0.7786
A3: AREA | B3: Ocean Passage (Open) | C3: Fairways outside ports (Coastal / Shallow waters) | D3: Fairways inside ports (Within Port Limits / Restricted Waters) | E3: Remarks
A4: MAX. SPEED | B4: 12.50 | C4: 12.50 | D4: 6.00
A5: DEEPEST DRAFT | B5: 20.00 | C5: 4.90 | D5: 19.80 | E5: Static Draft
A6: TOTAL CALCULATED SQUAT | B6: 1.25 | C6: 1.16 | D6: 0.56
A7: SAFETY MARGIN | B7: 2.00 | C7: 2.00 | D7: 1.42 | E7: Ensure it is equal to A3 in NAV 02 (Catzoc Consideration Tab).
A8: MINIMUM UKC REQUIRED | B8: =(B5+B6+B7)/2 -> 11.63 | C8: =(C5+C6+C7)*0.15 -> 1.21 | D8: =IF(F8>G8,F8,G8) -> 0.60 | F8: =B2*0.015 -> 0.48 | G8: 0.6
A9: TIDE | B9: 0.00 | C9: 0.00 | D9: 0.00
A10: SAFETY DEPTH | B10: =IF((B5+B6+B8+B7-B9)<B5,ROUNDUP(B5,0),ROUNDUP((B5+B6+B8+B7-B9),0)) -> 35.00 | C10: =IF((C5+C6+C8+C7-C9)<C5,ROUNDUP(C5,0),ROUNDUP((C5+C6+C8+C7-C9),0)) -> 10.00 | D10: =IF((D5+D6+D8+D7-D9)<D5,ROUNDUP(D5,0),ROUNDUP((D5+D6+D8+D7-D9),0)) -> 23.00
A11: SAFETY CONTOUR | B11: =B10 -> 35.00 | C11: =C10 -> 10.00 | D11: =D10 -> 23.00
A12: SHALLOW CONTOUR | B12: =IF(ROUNDUP((B5+1),0)>=B11,B5,ROUNDUP((B5+1),0)) -> 21.00 | C12: =IF(ROUNDUP((C5+1),0)>=C11,C5,ROUNDUP((C5+1),0)) -> 6.00 | D12: 21.00
A13: DEEP CONTOUR | B13: =ROUNDUP((F13*2),0) -> 43.00 | C13: =ROUNDUP((G13*2),0) -> 13.00 | D13: =ROUNDUP((H13*2),0) -> 41.00 | F13: =B5+B6 -> 21.25 | G13: =C5+C6 -> 6.06 | H13: =D5+D6 -> 20.36
A14: Look Ahead Settings | E14: FOM 3.29 Section 5.6
A15: Cross Track Distance | E15: FOM 3.29 Section 5.8
A17: SHALLOW CONTOUR = Next contour shallower than safety contour/must not be less than vessel’s draft
A18: SAFETY DEPTH = Vessel Draft + Dynamic Squat + UKC + Safety Margin - Height of Tide
A19: SAFETY CONTOUR = Safety contour should be set at a value equal to the safety depth
A20: DEPTH CONTOUR = Twice the Dynamic Draft (Max. Static draft + Squat)
A21: ECHO SOUNDER = Ensure alarm, if fitted, is used for safe navigation.
A22: NOTE (when marking NO GO AREA on ECDIS):
A24: Shallow Contour should not be confused by the wording 'contour'. The safe/unsafe contour for Navigation is the safety contour. A shallow contour is only for additional indication of the underwater topography of the already 'un-safe' water; it is not calculation between draft and tide values. Reminding once again that the safety of the navigation is only to be dependent upon the 'Safety Contour' & 'Safety Depth' mentioned above.
A25: All ECDIS parameters set prior to the beginning of the voyage must not be removed/changed/de-activated without permission from the Master. Any safety parameters to be re-set to original settings after planning/trial/simulation mode
A27: Prepared by :
B28: Second Officer
A30: Calculation confirmed by :
B31: Master

Sheet Sea Passage
Q2: `
B3: All dates & times are GMT | L3: =+'Vsl Details'!C7 -> M/T Example
B4: PILOTS | D4: SPD | F4: Voy : | G4: =+'Vsl Details'!C9 -> 11 | H4: =+'Vsl Details'!C10 -> Loaded | K4: Time | W4: =SUM(J10:J108) -> Total Distance : 16016.1
B5: 2005-07-22T12:00:00 | D5: 14.3 | F5: From : | G5: ='Checklist A'!$G$8 -> Singapore | K5: =+'Vsl Details'!C14 -> 8 | L5: To : | M5: ='Checklist A'!$G$9 -> Rotterdam | P5: =+'Vsl Details'!C18 -> 1 | W5: Sea Passage
A7: WP No. | B7: GEOGRAPHICAL AREA WAYPOINT | C7: LATITUDE | F7: LONGITUDE | I7: CO | J7: DIST. TO NEXT WP | K7: DTG | L7: RL/GC | M7: Verification Freq / Method | Q7: Max Spd (kts) | R7: T&P Notices | S7: Safety Setting | T7: UKC | U7: MARPOL Special area / ECA Zone | V7: Security Level | W7: Remarks: NAV Aids, Restrictions, Weather, Cautions, Traffic Density, UKC, Tides etc, T&P notice number effecting each leg, extra lookout if passing through HRA, Area where vessel should be hardened. | X7: Watch Level | AW7: Ocean Passage (Open) | AX7: Fairways outside ports (Coastal / Shallow waters) | AY7: Fairways inside ports (Within Port Limits / Restricted Waters)
AA8: latrad | AB8: longrad | AC8: dlon_W | AD8: dlon_E | AE8: dphi | AF8: q1 | AG8: q | AH8: dlon_min | AI8: tc_rad | AJ8: tc | AK8: dist_rad | AL8: dist
C9: DEG | D9: MIN | E9: N/S | F9: DEG | G9: MIN | H9: E/W | M9: Freq | N9: Main | O9: Alt 1 | P9: Alt 2 | U9: Yes / No | X9: Bridge | Y9: E/R | CH9: Course | CI9: Distance
A10: WP 1 | B10: PILOT STATION | C10: 27° | D10: 00.00` | E10: S | F10: 160° | G10: 09.00` | H10: E | I10: =IF(C11="","",IF(AD10<AC10,360-AJ10,AJ10)) -> 028° | J10: =IF(C11="",0,+AL10) -> 3674.5 | K10: =+J109 -> 16016.1 | M10: < 1 h | N10: Vis | O10: Rdr | P10: Cel | S10: Ocean Passage (Open) | AA10: =IF(E10="N",RADIANS(C10+(D10/60)),-RADIANS(C10+(D10/60))) -> -0.471238898 | AB10: =IF(H10="E",+RADIANS(F10+(G10/60)),-RADIANS(F10+(G10/60))) -> 2.795144797 | AC10: =MOD(AB11-AB10,2*PI()) -> 0.5175483009 | AD10: =MOD(AB10-AB11,2*PI()) -> 5.765637006 | AE10: =LN(TAN(AA11/2+PI()/4)/TAN(AA10/2+PI()/4)) -> 0.9831883811 | AF10: =COS(AA10) -> 0.8910065242 | AG10: =IF(AA11=AA10,AF10,(AA11-AA10)/AE10) -> 0.9619957159 | AH10: =MIN(AC10,AD10) -> 0.5175483009 | AI10: =MOD(ATAN2(AE10,AH10),2*PI()) -> 0.4845422274 | AJ10: =DEGREES(AI10) -> 27.8 | AK10: =SQRT(AG10^2*AH10^2+(AA11-AA10)^2) -> 1.068861503 | AL10: =DEGREES(AK10)*60 -> 3674.5 | CH10: =I10 -> 27.76222 | CI10: =J10 -> 3674.4752
A11: WP 2 | B11: GHAR BUOY | C11: 27° | D11: 11.50` | E11: N | F11: 170° | G11: 11.80` | H11: W | I11: 270° | J11: 7410.1 | K11: =+K10-J10 -> 12341.6 | M11: < 1 h | N11: Vis | O11: Rdr | P11: Gps | AA11: 0.4745841124 | AB11: -2.970492209 | AC11: =MOD(AB12-AB11,2*PI()) -> 3.859882907 | AD11: =MOD(AB11-AB12,2*PI()) -> 2.4233024 | AE11: =LN(TAN(AA12/2+PI()/4)/TAN(AA11/2+PI()/4)) -> -3.270282687e-05 | AF11: =COS(AA11) -> 0.8894828461 | AG11: =IF(AA12=AA11,AF11,(AA12-AA11)/AE11) -> 0.8894894923 | AH11: =MIN(AC11,AD11) -> 2.4233024 | AI11: =MOD(ATAN2(AE11,AH11),2*PI()) -> 1.570809822 | AJ11: =DEGREES(AI11) -> 90.0 | AK11: =SQRT(AG11^2*AH11^2+(AA12-AA11)^2) -> 2.155502022 | AL11: =DEGREES(AK11)*60 -> 7410.1 | CH11: 269.99923 | CI11: 7410.0701
A12: WP 3 | B12: RAS TANNURAH RACON (K) | C12: 27° | D12: 11.40` | E12: N | F12: 050° | G12: 57.50` | H12: E | I12: 099° | J12: 60.8 | K12: =+K11-J11 -> 4931.6 | M12: < 1 h | N12: Vis | O12: Gps | P12: Gps | AA12: 0.4745550236 | AB12: 0.889390698 | AC12: 0.01963495408 | AD12: =MOD(AB12-AB13,2*PI()) -> 6.263550353 | AE12: =LN(TAN(AA13/2+PI()/4)/TAN(AA12/2+PI()/4)) -> -0.003071889606 | AF12: =COS(AA12) -> 0.8894961384 | AG12: =IF(AA13=AA12,AF12,(AA13-AA12)/AE12) -> 0.8901196046 | AH12: =MIN(AC12,AD12) -> 0.01963495408 | AI12: =MOD(ATAN2(AE12,AH12),2*PI()) -> 1.725988348 | AJ12: 98.9 | AK12: =SQRT(AG12^2*AH12^2+(AA13-AA12)^2) -> 0.01769005903 | AL12: 60.8 | CH12: 98.89185 | CI12: 60.8139
A13: WP 4 | B13: FIELD | C13: 27° | D13: 02.00` | E13: N | F13: 052° | G13: 05.00` | H13: E | I13: 132° | J13: 30.0 | K13: 4870.7 | M13: < 1 h | N13: Vis | O13: Rdr | P13: Gps | AA13: 0.4718206745 | AB13: 0.9090256521 | AC13: 0.007272205217 | AD13: 6.275913102 | AE13: -0.006521728036 | AF13: 0.8907422525 | AG13: 0.8920586907 | AH13: 0.007272205217 | AI13: 2.301841754 | AJ13: 131.9 | AK13: 0.00871381565 | AL13: 30.0 | BR13: Yes | CH13: 131.88582 | CI13: 29.9559
A14: WP 5 | B14: CABLE BANK | C14: 26° | D14: 42.00` | E14: N | F14: 052° | G14: 30.00` | H14: E | I14: 106° | J14: 104.6 | K14: 4840.8 | M14: < 1 h | N14: Vis | O14: Rdr | P14: Gps | AA14: 0.4660029103 | AB14: 0.9162978573 | AC14: 0.03257947937 | AD14: 6.250605828 | AE14: -0.009649705906 | AF14: 0.8933713883 | AG14: 0.8952998031 | AH14: 0.03257947937 | AI14: 1.858753769 | AJ14: 106.5 | AK14: 0.0304209554 | AL14: 104.6 | BR14: No | CH14: 106.49875 | CI14: 104.5795
A15: WP 6 | B15: FORUR ISLAND | C15: 26° | D15: 12.30` | E15: N | F15: 054° | G15: 22.00` | H15: E | I15: 097° | J15: 50.2 | K15: 4736.2 | M15: < 1 h | N15: Vis | O15: Rdr | P15: Gps | AA15: 0.4573635305 | AB15: 0.9488773367 | AC15: 0.01614429558 | AD15: 6.267041012 | AE15: -0.001879642259 | AF15: 0.8972198376 | AG15: 0.8975918702 | AH15: 0.01614429558 | AI15: 1.686702132 | AJ15: 96.6 | AK15: 0.0145888734 | AL15: 50.2 | BR15: Level 1 | CH15: 96.64091 | CI15: 50.1529
A16: WP 7 | B16: TONBE ISLAND | C16: 26° | D16: 06.50` | E16: N | F16: 055° | G16: 17.50` | H16: E | I16: 070° | J16: 11.9 | K16: 4686.1 | M16: < 1 h | N16: Vis | O16: Rdr | P16: Gps | AA16: 0.4556763789 | AB16: 0.9650216322 | AC16: 0.003636102608 | AD16: 6.279549205 | AE16: 0.001296138279 | AF16: 0.8979635797 | AG16: 0.8977073305 | AH16: 0.003636102608 | AI16: 1.228374921 | AJ16: 70.4 | AK16: 0.003465338276 | AL16: 11.9 | BR16: Level 2 | CH16: 70.38070 | CI16: 11.9130
A17: WP 8 | B17: TSS OUT | C17: 26° | D17: 10.50` | E17: N | F17: 055° | G17: 30.00` | H17: E | I17: 067° | J17: 51.7 | K17: 4674.1 | M17: < 1 h | N17: Vis | O17: Rdr | P17: Gps | AA17: 0.4568399317 | AB17: 0.9686577349 | AC17: 0.01541707506 | AD17: 6.267768232 | AE17: 0.006654402881 | AF17: 0.8974509275 | AG17: 0.896129733 | AH17: 0.01541707506 | AI17: 1.163327224 | AJ17: 66.7 | AK17: 0.0150477042 | AL17: 51.7 | BR17: Level 3 | CH17: 66.65374 | CI17: 51.7302
A18: WP 9 | B18: TSS HORMUZ 1 | C18: 26° | D18: 31.00` | E18: N | F18: 056° | G18: 23.00` | H18: E | I18: 065° | J18: 5.7 | K18: 4622.4 | M18: < 1 h | N18: Vis | O18: Rdr | P18: Gps | AA18: 0.46280314 | AB18: 0.9840748099 | AC18: 0.00168715161 | AD18: 6.281498156 | AE18: 0.0007803417977 | AF18: 0.8948045301 | AG18: 0.894648605 | AH18: 0.00168715161 | AI18: 1.13757947 | AJ18: 65.2 | AK18: 0.001663039351 | AL18: 5.7 | CH18: 65.17850 | CI18: 5.7171
A19: WP 10 | B19: TSS HORMUZ 2 | C19: 26° | D19: 33.40` | E19: N | F19: 056° | G19: 28.80` | H19: E | I19: 090° | J19: 3.6 | K19: 4616.7 | M19: < 1 h | N19: Vis | O19: Rdr | P19: Gps | AA19: 0.4635012717 | AB19: 0.9857619615 | AC19: 0.001163552835 | AD19: 6.282021754 | AE19: 0 | AF19: 0.8944926255 | AG19: 0.8944926255 | AH19: 0.001163552835 | AI19: 1.570796327 | AJ19: 90.0 | AK19: 0.00104078943 | AL19: 3.6 | CH19: 90.00000 | CI19: 3.5780
A20: WP 11 | B20: TSS HORMUZ 3 | C20: 26° | D20: 33.40` | E20: N | F20: 056° | G20: 32.80` | H20: E | I20: 149° | J20: 62.1 | K20: 4613.1 | M20: < 1 h | N20: Vis | O20: Rdr | P20: Gps | AA20: 0.4635012717 | AB20: 0.9869255144 | AC20: 0.01023926495 | AD20: 6.272946042 | AE20: -0.01729925893 | AF20: 0.8944926255 | AG20: 0.8979246106 | AH20: 0.01023926495 | AI20: 2.607157448 | AJ20: 149.4 | AK20: 0.01805044908 | AL20: 62.1 | CH20: 149.37912 | CI20: 62.0529
A21: WP 12 | B21: RAS AL KUH 1 | C21: 25° | D21: 40.00` | E21: N | F21: 057° | G21: 08.00` | H21: E | I21: 140° | J21: 13.1 | K21: 4551.1 | M21: < 1 h | N21: Vis | O21: Rdr | P21: Gps | AA21: 0.4479678413 | AB21: 0.9971647793 | AC21: 0.002705260341 | AD21: 6.280480047 | AE21: -0.003225075904 | AF21: 0.9013291614 | AG21: 0.9019577131 | AH21: 0.002705260341 | AI21: 2.443624675 | AJ21: 140.0 | AK21: 0.003796754337 | AL21: 13.1 | CH21: 140.00938 | CI21: 13.0523
A22: WP 13 | B22: RAS AL KUH 2 | C22: 25° | D22: 30.00` | E22: N | F22: 057° | G22: 17.30` | H22: E | I22: 136° | J22: 124.5 | K22: 4538.0 | M22: < 1 h | N22: Vis | O22: Rdr | P22: Gps | AA22: 0.4450589593 | AB22: 0.9998700396 | AC22: 0.02754711336 | AD22: 6.255638194 | AE22: -0.02882915937 | AF22: 0.9025852843 | AG22: 0.9081062144 | AH22: 0.02754711336 | AI22: 2.378931451 | AJ22: 136.3 | AK22: 0.03621014613 | AL22: 124.5 | CH22: 136.30273 | CI22: 124.4813
A23: WP 14 | B23: 24° NORTH | C23: 24° | D23: 00.00` | E23: N | F23: 058° | G23: 52.00` | H23: E | I23: 136° | J23: 110.5 | K23: 4413.5 | M23: < 1 h | N23: Vis | O23: Rdr | P23: Gps | AA23: 0.4188790205 | AB23: 1.027417153 | AC23: 0.02414372132 | AD23: 6.259041586 | AE23: -0.02534455349 | AF23: 0.9135454576 | AG23: 0.918187677 | AH23: 0.02414372132 | AI23: 2.380454713 | AJ23: 136.4 | AK23: 0.0321400533 | AL23: 110.5 | CH23: 136.39001 | CI23: 110.4894
A24: WP 15 | B24: RAS AL HADD | C24: 22° | D24: 40.00` | E24: N | F24: 060° | G24: 15.00` | H24: E | I24: 180° | J24: 40.0 | K24: 4303.0 | M24: < 1 h | N24: Vis | O24: Rdr | P24: Gps | AA24: 0.3956079638 | AB24: 1.051560874 | AC24: 0 | AD24: 0 | AE24: -0.01257919674 | AF24: 0.9227624444 | AG24: 0.924981824 | AH24: 0 | AI24: 3.141592654 | AJ24: 180.0 | AK24: 0.01163552835 | AL24: 40.0 | CH24: 180.00000 | CI24: 40.0000
A25: WP 16 | B25: RAS QUMAYLAH | C25: 22° | D25: 00.00` | E25: N | F25: 060° | G25: 15.00` | H25: E | I25: 204° | J25: 618.9 | K25: 4263.0 | M25: < 1 h | N25: Vis | O25: Rdr | P25: Gps | AA25: 0.3839724354 | AB25: 1.051560874 | AC25: 6.206099932 | AD25: 0.0770853753 | AE25: -0.1723632862 | AF25: 0.9271838546 | AG25: 0.953519984 | AH25: 0.0770853753 | AI25: 2.721047825 | AJ25: 155.9 | AK25: 0.1800392628 | AL25: 618.9 | CH25: 204.09544 | CI25: 618.9294
A26: WP 17 | B26: SUQUTRA | C26: 12° | D26: 35.00` | E26: N | F26: 055° | G26: 50.00` | H26: E | I26: 209° | J26: 1647.4 | K26: 3644.1 | M26: < 1 h | N26: Vis | O26: Rdr | P26: Gps | AA26: 0.2196205975 | AB26: 0.974475499 | AC26: 6.051347405 | AD26: 0.2318379023 | AE26: -0.4234819293 | AF26: 0.9759801759 | AG26: 0.9925652842 | AH26: 0.2318379023 | AI26: 2.640704382 | AJ26: 151.3 | AK26: 0.4792001549 | AL26: 1647.4 | CH26: 208.69878 | CI26: 1647.3688
A27: WP 18 | B27: COMORES | C27: 11° | D27: 30.00` | E27: S | F27: 042° | G27: 33.00` | H27: E | I27: 198° | J27: 284.7 | K27: 1996.7 | M27: < 1 h | N27: Vis | O27: Rdr | P27: Gps | AA27: -0.200712864 | AB27: 0.7426375967 | AC27: 6.256132704 | AD27: 0.02705260341 | AE27: -0.08088029244 | AF27: 0.9799247046 | AG27: 0.9710624674 | AH27: 0.02705260341 | AI27: 2.818813088 | AJ27: 161.5 | AK27: 0.08281668583 | AL27: 284.7 | CH27: 198.49391 | CI27: 284.7028
A28: WP 19 | B28: MOZAMBIQUE | C28: 16° | D28: 00.00` | E28: S | F28: 041° | G28: 00.00` | H28: E | I28: 208° | J28: 606.4 | K28: 1712.0 | M28: < 1 h | N28: Vis | O28: Rdr | P28: Gps | AA28: -0.2792526803 | AB28: 0.7155849933 | AC28: 6.194464404 | AD28: 0.08872090364 | AE28: -0.1663165438 | AF28: 0.9612616959 | AG28: 0.9357168451 | AH28: 0.08872090364 | AI28: 2.651547575 | AJ28: 151.9 | AK28: 0.1763834729 | AL28: 606.4 | CH28: 208.07751 | CI28: 606.3617
A29: WP 20 | B29: PUNTA ZAVORA | C29: 24° | D29: 55.00` | E29: S | F29: 035° | G29: 55.00` | H29: E | I29: 216° | J29: 285.7 | K29: 1105.7 | M29: < 1 h | N29: Vis | O29: Rdr | P29: Gps | AA29: -0.434877872 | AB29: 0.6268640897 | AC29: 6.227916548 | AD29: 0.05526875965 | AE29: -0.0749987788 | AF29: 0.9069215016 | AG29: 0.8920716986 | AH29: 0.05526875965 | AI29: 2.506509736 | AJ29: 143.6 | AK29: 0.08310859294 | AL29: 285.7 | CH29: 216.38757 | CI29: 285.7063
A30: WP 21 | B30: CAPE SANTA LUCIA | C30: 28° | D30: 45.00` | E30: S | F30: 032° | G30: 45.00` | H30: E | I30: 216° | J30: 159.3 | K30: 820.0 | M30: < 1 h | N30: Vis | O30: Rdr | P30: Gps | AA30: -0.5017821599 | AB30: 0.57159533 | AC30: 6.251594848 | AD30: 0.03159045946 | AE30: -0.04305439351 | AF30: 0.8767267557 | AG30: 0.8675083528 | AH30: 0.03159045946 | AI30: 2.508583514 | AJ30: 143.7 | AK30: 0.04632557903 | AL30: 159.3 | CH30: 216.26875 | CI30: 159.2556
A31: WP 22 | B31: SOUTH OF DURBAN | C31: 30° | D31: 53.40` | E31: S | F31: 030° | G31: 56.40` | H31: E | I31: 220° | J31: 208.9 | K31: 660.7 | M31: < 1 h | N31: Vis | O31: Rdr | P31: Gps | AA31: -0.5391322059 | AB31: 0.5400048706 | AC31: 6.236817727 | AD31: 0.04636758046 | AE31: -0.05488516738 | AF31: 0.8581545225 | AG31: 0.8458707574 | AH31: 0.04636758046 | AI31: 2.44011893 | AJ31: 139.8 | AK31: 0.06077529366 | AL31: 208.9 | CH31: 220.19148 | CI31: 208.9301
A32: WP 23 | B32: EAST LONDON | C32: 33° | D32: 33.00` | E32: S | F32: 028° | G32: 17.00` | H32: E | I32: 241° | J32: 87.1 | K32: 451.8 | M32: < 1 h | N32: Vis | O32: Rdr | P32: Gps | AA32: -0.585557964 | AB32: 0.4936372901 | AC32: 6.256423592 | AD32: 0.0267617152 | AE32: -0.01471960065 | AF32: 0.8334038487 | AG32: 0.8300024611 | AH32: 0.0267617152 | AI32: 2.073658394 | AJ32: 118.8 | AK32: 0.02535050965 | AL32: 87.1 | CH32: 241.18813 | CI32: 87.1486
A33: WP 24 | B33: WEST OF CAPE RECIFE | C33: 34° | D33: 15.00` | E33: S | F33: 026° | G33: 45.00` | H33: E | I33: 257° | J33: 96.6 | K33: 364.6 | M33: < 1 h | N33: Vis | O33: Rdr | P33: Gps | AA33: -0.5977752688 | AB33: 0.4668755749 | AC33: 6.250024051 | AD33: 0.03316125579 | AE33: -0.007759069702 | AF33: 0.8265897491 | AG33: 0.8247819437 | AH33: 0.03316125579 | AI33: 1.800641423 | AJ33: 103.2 | AK33: 0.02808951146 | AL33: 96.6 | CH33: 256.83085 | CI33: 96.5646
A34: WP 25 | B34: CAPE ST. FRANCIS | C34: 34° | D34: 37.00` | E34: S | F34: 024° | G34: 51.00` | H34: E | I34: 266° | J34: 124.4 | K34: 268.1 | M34: < 1 h | N34: Vis | O34: Rdr | P34: Gps | AA34: -0.6041748094 | AB34: 0.4337143191 | AC34: 6.239261188 | AD34: 0.04392411951 | AE34: -0.002829964151 | AF34: 0.8229711547 | AG34: 0.8223092397 | AH34: 0.04392411951 | AI34: 1.635135878 | AJ34: 93.7 | AK34: 0.03619409762 | AL34: 124.4 | CH34: 266.31362 | CI34: 124.4261
A35: WP 26 | B35: TSS IN | C35: 34° | D35: 45.00` | E35: S | F35: 022° | G35: 20.00` | H35: E | I35: 262° | J35: 78.8 | K35: 143.6 | M35: < 1 h | N35: Vis | O35: Rdr | P35: Gps | AA35: -0.6065019151 | AB35: 0.3897901996 | AC35: 6.255550927 | AD35: 0.02763437982 | AE35: -0.004076091648 | AF35: 0.8216469379 | AG35: 0.8206916548 | AH35: 0.02763437982 | AI35: 1.717241125 | AJ35: 98.4 | AK35: 0.02292468823 | AL35: 78.8 | CH35: 261.60933 | CI35: 78.8093
A36: WP 27 | B36: TSS OUT | C36: 34° | D36: 56.50` | E36: S | F36: 020° | G36: 45.00` | H36: E | I36: 245° | J36: 36.0 | K36: 64.8 | M36: < 1 h | N36: Vis | O36: Rdr | P36: Gps | AA36: -0.6098471295 | AB36: 0.3621558198 | AC36: 6.271549779 | AD36: 0.01163552835 | AE36: -0.005330989306 | AF36: 0.8197355828 | AG36: 0.8184828143 | AH36: 0.01163552835 | AI36: 2.000419306 | AJ36: 114.6 | AK36: 0.01047545989 | AL36: 36.0 | CH36: 245.38442 | CI36: 36.0120
A37: WP 28 | B37: CAPE AGULHAS | C37: 35° | D37: 11.50` | E37: S | F37: 020° | G37: 05.00` | H37: E | I37: 277° | J37: 28.8 | K37: 28.8 | M37: < 1 h | N37: Vis | O37: Rdr | P37: Gps | AA37: -0.6142104526 | AB37: 0.3505202914 | AC37: 6.27300422 | AD37: 0.0101810873 | AE37: 0.001245359539 | AF37: 0.8172287284 | AG37: 0.817521927 | AH37: 0.0101810873 | AI37: 1.449080101 | AJ37: 83.0 | AK37: 0.008385298895 | AL37: 28.8 | CH37: 276.97383 | CI37: 28.8265
A38: WP 29 | B38: QUOIN POINT | C38: 35° | D38: 08.00` | E38: S | F38: 019° | G38: 30.00` | H38: E | J38: 0.0 | K38: -0.0 | M38: < 1 h | N38: Vis | O38: Rdr | P38: Gps | AA38: -0.6131923439 | AB38: 0.3403392041 | AC38: 5.942846103 | AD38: 0.3403392041 | AE38: 0.6556797708 | AF38: 0.8178150545 | AG38: 0.9352009489 | AH38: 0.3403392041 | AI38: 0.4787815606 | AJ38: 27.4 | AK38: 0.6908766459 | AL38: 2375.1 | CI38: 0.0000
A39: WP 30 | J39: 0.0 | K39: -0.0 | M39: < 1 h | N39: Vis | O39: Rdr | P39: Gps | AA39: 0 | AB39: 0 | AC39: 0 | AD39: 0 | AE39: 0 | AF39: 1 | AG39: 1 | AH39: 0 | AK39: 0 | AL39: 0.0 | CI39: 0.0000
A40: WP 31 | J40: 0.0 | K40: -0.0 | M40: < 1 h | N40: Vis | O40: Rdr | P40: Gps | AA40: 0 | AB40: 0 | AC40: 0 | AD40: 0 | AE40: 0 | AF40: 1 | AG40: 1 | AH40: 0 | AK40: 0 | AL40: 0.0 | CI40: 0.0000
A41: WP 32 | J41: 0.0 | K41: -0.0 | M41: < 1 h | N41: Vis | O41: Rdr | P41: Gps | AA41: 0 | AB41: 0 | AC41: 0 | AD41: 0 | AE41: 0 | AF41: 1 | AG41: 1 | AH41: 0 | AK41: 0 | AL41: 0.0 | CI41: 0.0000
A42: WP 33 | I42: =IF(C43="","",IF(AD42<AC42,360-AJ42,AJ42)) ->  | J42: =IF(C43="",0,+AL42) -> 0.0 | K42: -0.0 | M42: < 1 h | N42: Vis | O42: Rdr | P42: Gps | AA42: =IF(E42="N",RADIANS(C42+(D42/60)),-RADIANS(C42+(D42/60))) -> 0 | AB42: =IF(H42="E",+RADIANS(F42+(G42/60)),-RADIANS(F42+(G42/60))) -> 0 | AC42: 0 | AD42: 0 | AE42: 0 | AF42: 1 | AG42: 1 | AH42: 0 | AK42: 0 | AL42: 0.0 | CH42: =I42 ->  | CI42: =J42 -> 0.0000
A43: WP 34 | J43: 0.0 | K43: -0.0 | M43: < 1 h | N43: Vis | O43: Rdr | P43: Gps | AA43: 0 | AB43: 0 | AC43: 0 | AD43: 0 | AE43: 0 | AF43: 1 | AG43: 1 | AH43: 0 | AK43: 0 | AL43: 0.0 | CI43: 0.0000
A44: WP 35 | J44: 0.0 | K44: -0.0 | M44: < 1 h | N44: Vis | O44: Rdr | P44: Gps | AA44: 0 | AB44: 0 | AC44: 0 | AD44: 0 | AE44: 0 | AF44: 1 | AG44: 1 | AH44: 0 | AK44: 0 | AL44: 0.0 | CI44: 0.0000
A45: WP 36 | J45: 0.0 | K45: -0.0 | M45: < 1 h | N45: Vis | O45: Rdr | P45: Gps | AA45: 0 | AB45: 0 | AC45: 0 | AD45: 0 | AE45: 0 | AF45: 1 | AG45: 1 | AH45: 0 | AK45: 0 | AL45: 0.0 | CI45: 0.0000
A46: WP 37 | J46: 0.0 | K46: -0.0 | M46: < 1 h | N46: Vis | O46: Rdr | P46: Gps | AA46: 0 | AB46: 0 | AC46: 0 | AD46: 0 | AE46: 0 | AF46: 1 | AG46: 1 | AH46: 0 | AK46: 0 | AL46: 0.0 | CI46: 0.0000
A47: WP 38 | J47: 0.0 | K47: -0.0 | M47: < 1 h | N47: Vis | O47: Rdr | P47: Gps | AA47: 0 | AB47: 0 | AC47: 0 | AD47: 0 | AE47: 0 | AF47: 1 | AG47: 1 | AH47: 0 | AK47: 0 | AL47: 0.0 | CI47: 0.0000
A48: WP 39 | J48: 0.0 | K48: -0.0 | M48: < 1 h | N48: Vis | O48: Rdr | P48: Gps | AA48: 0 | AB48: 0 | AC48: 0 | AD48: 0 | AE48: 0 | AF48: 1 | AG48: 1 | AH48: 0 | AK48: 0 | AL48: 0.0 | CI48: 0.0000
A49: WP 40 | J49: 0.0 | K49: -0.0 | M49: < 1 h | N49: Vis | O49: Rdr | P49: Gps | AA49: 0 | AB49: 0 | AC49: 0 | AD49: 0 | AE49: 0 | AF49: 1 | AG49: 1 | AH49: 0 | AK49: 0 | AL49: 0.0 | CI49: 0.0000
A50: WP 41 | J50: 0.0 | K50: -0.0 | M50: < 1 h | N50: Vis | O50: Rdr | P50: Gps | AA50: 0 | AB50: 0 | AC50: 0 | AD50: 0 | AE50: 0 | AF50: 1 | AG50: 1 | AH50: 0 | AK50: 0 | AL50: 0.0 | CI50: 0.0000
A51: WP 42 | J51: 0.0 | K51: -0.0 | M51: < 1 h | N51: Vis | O51: Rdr | P51: Gps | AA51: 0 | AB51: 0 | AC51: 0 | AD51: 0 | AE51: 0 | AF51: 1 | AG51: 1 | AH51: 0 | AK51: 0 | AL51: 0.0 | CI51: 0.0000
A52: WP 43 | J52: 0.0 | K52: -0.0 | M52: < 1 h | N52: Vis | O52: Rdr | P52: Gps | AA52: 0 | AB52: 0 | AC52: 0 | AD52: 0 | AE52: 0 | AF52: 1 | AG52: 1 | AH52: 0 | AK52: 0 | AL52: 0.0 | CI52: 0.0000
A53: WP 44 | J53: 0.0 | K53: -0.0 | M53: < 1 h | N53: Vis | O53: Rdr | P53: Gps | AA53: 0 | AB53: 0 | AC53: 0 | AD53: 0 | AE53: 0 | AF53: 1 | AG53: 1 | AH53: 0 | AK53: 0 | AL53: 0.0 | CI53: 0.0000
A54: WP 45 | J54: 0.0 | K54: -0.0 | M54: < 1 h | N54: Vis | O54: Rdr | P54: Gps | AA54: 0 | AB54: 0 | AC54: 0 | AD54: 0 | AE54: 0 | AF54: 1 | AG54: 1 | AH54: 0 | AK54: 0 | AL54: 0.0 | CI54: 0.0000
A55: WP 46 | J55: 0.0 | K55: -0.0 | M55: < 1 h | N55: Vis | O55: Rdr | P55: Gps | AA55: 0 | AB55: 0 | AC55: 0 | AD55: 0 | AE55: 0 | AF55: 1 | AG55: 1 | AH55: 0 | AK55: 0 | AL55: 0.0 | CI55: 0.0000
A56: WP 47 | J56: 0.0 | K56: -0.0 | M56: < 1 h | N56: Vis | O56: Rdr | P56: Gps | AA56: 0 | AB56: 0 | AC56: 0 | AD56: 0 | AE56: 0 | AF56: 1 | AG56: 1 | AH56: 0 | AK56: 0 | AL56: 0.0 | CI56: 0.0000
A57: WP 48 | J57: 0.0 | K57: -0.0 | M57: < 1 h | N57: Vis | O57: Rdr | P57: Gps | AA57: 0 | AB57: 0 | AC57: 0 | AD57: 0 | AE57: 0 | AF57: 1 | AG57: 1 | AH57: 0 | AK57: 0 | AL57: 0.0 | CI57: 0.0000
A58: WP 49 | J58: 0.0 | K58: -0.0 | M58: < 1 h | N58: Vis | O58: Rdr | P58: Gps | AA58: 0 | AB58: 0 | AC58: 0 | AD58: 0 | AE58: 0 | AF58: 1 | AG58: 1 | AH58: 0 | AK58: 0 | AL58: 0.0 | CI58: 0.0000
A59: WP 50 | J59: 0.0 | K59: -0.0 | M59: < 1 h | N59: Vis | O59: Rdr | P59: Gps | AA59: 0 | AB59: 0 | AC59: 0 | AD59: 0 | AE59: 0 | AF59: 1 | AG59: 1 | AH59: 0 | AK59: 0 | AL59: 0.0 | CI59: 0.0000
A60: WP 51 | J60: 0.0 | K60: -0.0 | M60: < 1 h | N60: Vis | O60: Rdr | P60: Gps | AA60: 0 | AB60: 0 | AC60: 0 | AD60: 0 | AE60: 0 | AF60: 1 | AG60: 1 | AH60: 0 | AK60: 0 | AL60: 0.0 | CI60: 0.0000
A61: WP 52 | J61: 0.0 | K61: -0.0 | M61: < 1 h | N61: Vis | O61: Rdr | P61: Gps | AA61: 0 | AB61: 0 | AC61: 0 | AD61: 0 | AE61: 0 | AF61: 1 | AG61: 1 | AH61: 0 | AK61: 0 | AL61: 0.0 | CI61: 0.0000
A62: WP 53 | J62: 0.0 | K62: -0.0 | M62: < 1 h | N62: Vis | O62: Rdr | P62: Gps | AA62: 0 | AB62: 0 | AC62: 0 | AD62: 0 | AE62: 0 | AF62: 1 | AG62: 1 | AH62: 0 | AK62: 0 | AL62: 0.0 | CI62: 0.0000
A63: WP 54 | J63: 0.0 | K63: -0.0 | M63: < 1 h | N63: Vis | O63: Rdr | P63: Gps | AA63: 0 | AB63: 0 | AC63: 0 | AD63: 0 | AE63: 0 | AF63: 1 | AG63: 1 | AH63: 0 | AK63: 0 | AL63: 0.0 | CI63: 0.0000
A64: WP 55 | J64: 0.0 | K64: -0.0 | M64: < 1 h | N64: Vis | O64: Rdr | P64: Gps | AA64: 0 | AB64: 0 | AC64: 0 | AD64: 0 | AE64: 0 | AF64: 1 | AG64: 1 | AH64: 0 | AK64: 0 | AL64: 0.0 | CI64: 0.0000
A65: WP 56 | J65: 0.0 | K65: -0.0 | M65: < 1 h | N65: Vis | O65: Rdr | P65: Gps | AA65: 0 | AB65: 0 | AC65: 0 | AD65: 0 | AE65: 0 | AF65: 1 | AG65: 1 | AH65: 0 | AK65: 0 | AL65: 0.0 | CI65: 0.0000
A66: WP 57 | J66: 0.0 | K66: -0.0 | M66: < 1 h | N66: Vis | O66: Rdr | P66: Gps | AA66: 0 | AB66: 0 | AC66: 0 | AD66: 0 | AE66: 0 | AF66: 1 | AG66: 1 | AH66: 0 | AK66: 0 | AL66: 0.0 | CI66: 0.0000
A67: WP 58 | J67: 0.0 | K67: -0.0 | M67: < 1 h | N67: Vis | O67: Rdr | P67: Gps | AA67: 0 | AB67: 0 | AC67: 0 | AD67: 0 | AE67: 0 | AF67: 1 | AG67: 1 | AH67: 0 | AK67: 0 | AL67: 0.0 | CI67: 0.0000
A68: WP 59 | J68: 0.0 | K68: -0.0 | M68: < 1 h | N68: Vis | O68: Rdr | P68: Gps | AA68: 0 | AB68: 0 | AC68: 0 | AD68: 0 | AE68: 0 | AF68: 1 | AG68: 1 | AH68: 0 | AK68: 0 | AL68: 0.0 | CI68: 0.0000
A69: WP 60 | J69: 0.0 | K69: -0.0 | M69: < 1 h | N69: Vis | O69: Rdr | P69: Gps | AA69: 0 | AB69: 0 | AC69: 0 | AD69: 0 | AE69: 0 | AF69: 1 | AG69: 1 | AH69: 0 | AK69: 0 | AL69: 0.0 | CI69: 0.0000
A70: WP 61 | J70: 0.0 | K70: -0.0 | M70: < 1 h | N70: Vis | O70: Rdr | P70: Gps | AA70: 0 | AB70: 0 | AC70: 0 | AD70: 0 | AE70: 0 | AF70: 1 | AG70: 1 | AH70: 0 | AK70: 0 | AL70: 0.0 | CI70: 0.0000
A71: WP 62 | J71: 0.0 | K71: -0.0 | M71: < 1 h | N71: Vis | O71: Rdr | P71: Gps | AA71: 0 | AB71: 0 | AC71: 0 | AD71: 0 | AE71: 0 | AF71: 1 | AG71: 1 | AH71: 0 | AK71: 0 | AL71: 0.0 | CI71: 0.0000
A72: WP 63 | J72: 0.0 | K72: -0.0 | M72: < 1 h | N72: Vis | O72: Rdr | P72: Gps | AA72: 0 | AB72: 0 | AC72: 0 | AD72: 0 | AE72: 0 | AF72: 1 | AG72: 1 | AH72: 0 | AK72: 0 | AL72: 0.0 | CI72: 0.0000
A73: WP 64 | J73: 0.0 | K73: -0.0 | M73: < 1 h | N73: Vis | O73: Rdr | P73: Gps | AA73: 0 | AB73: 0 | AC73: 0 | AD73: 0 | AE73: 0 | AF73: 1 | AG73: 1 | AH73: 0 | AK73: 0 | AL73: 0.0 | CI73: 0.0000
A74: WP 65 | I74: =IF(C75="","",IF(AD74<AC74,360-AJ74,AJ74)) ->  | J74: =IF(C75="",0,+AL74) -> 0.0 | K74: -0.0 | M74: < 1 h | N74: Vis | O74: Rdr | P74: Gps | AA74: =IF(E74="N",RADIANS(C74+(D74/60)),-RADIANS(C74+(D74/60))) -> 0 | AB74: =IF(H74="E",+RADIANS(F74+(G74/60)),-RADIANS(F74+(G74/60))) -> 0 | AC74: 0 | AD74: 0 | AE74: 0 | AF74: 1 | AG74: 1 | AH74: 0 | AK74: 0 | AL74: 0.0 | CH74: =I74 ->  | CI74: =J74 -> 0.0000
A75: WP 66 | J75: 0.0 | K75: -0.0 | M75: < 1 h | N75: Vis | O75: Rdr | P75: Gps | AA75: 0 | AB75: 0 | AC75: =MOD(AB76-AB75,2*PI()) -> 0 | AD75: 0 | AE75: 0 | AF75: 1 | AG75: 1 | AH75: 0 | AJ75: =DEGREES(AI75) ->  | AK75: 0 | AL75: =DEGREES(AK75)*60 -> 0.0 | CI75: 0.0000
A76: WP 67 | J76: 0.0 | K76: =+K75-J75 -> -0.0 | M76: < 1 h | N76: Vis | O76: Rdr | P76: Gps | AA76: 0 | AB76: 0 | AC76: 0 | AD76: =MOD(AB76-AB77,2*PI()) -> 0 | AE76: =LN(TAN(AA77/2+PI()/4)/TAN(AA76/2+PI()/4)) -> 0 | AF76: =COS(AA76) -> 1 | AG76: =IF(AA77=AA76,AF76,(AA77-AA76)/AE76) -> 1 | AH76: =MIN(AC76,AD76) -> 0 | AI76: =MOD(ATAN2(AE76,AH76),2*PI()) ->  | AK76: =SQRT(AG76^2*AH76^2+(AA77-AA76)^2) -> 0 | AL76: 0.0 | CI76: 0.0000
A77: WP 68 | J77: 0.0 | K77: -0.0 | M77: < 1 h | N77: Vis | O77: Rdr | P77: Gps | AA77: 0 | AB77: 0 | AC77: 0 | AD77: 0 | AE77: 0 | AF77: 1 | AG77: 1 | AH77: 0 | AK77: 0 | AL77: 0.0 | CI77: 0.0000
A78: WP 69 | J78: 0.0 | K78: -0.0 | M78: < 1 h | N78: Vis | O78: Rdr | P78: Gps | AA78: 0 | AB78: 0 | AC78: 0 | AD78: 0 | AE78: 0 | AF78: 1 | AG78: 1 | AH78: 0 | AK78: 0 | AL78: 0.0 | CI78: 0.0000
A79: WP 70 | J79: 0.0 | K79: -0.0 | M79: < 1 h | N79: Vis | O79: Rdr | P79: Gps | AA79: 0 | AB79: 0 | AC79: 0 | AD79: 0 | AE79: 0 | AF79: 1 | AG79: 1 | AH79: 0 | AK79: 0 | AL79: 0.0 | CI79: 0.0000
A80: WP 71 | J80: 0.0 | K80: -0.0 | M80: < 1 h | N80: Vis | O80: Rdr | P80: Gps | AA80: 0 | AB80: 0 | AC80: 0 | AD80: 0 | AE80: 0 | AF80: 1 | AG80: 1 | AH80: 0 | AK80: 0 | AL80: 0.0 | CI80: 0.0000
A81: WP 72 | J81: 0.0 | K81: -0.0 | M81: < 1 h | N81: Vis | O81: Rdr | P81: Gps | AA81: 0 | AB81: 0 | AC81: 0 | AD81: 0 | AE81: 0 | AF81: 1 | AG81: 1 | AH81: 0 | AK81: 0 | AL81: 0.0 | CI81: 0.0000
A82: WP 73 | J82: 0.0 | K82: -0.0 | M82: < 1 h | N82: Vis | O82: Rdr | P82: Gps | AA82: 0 | AB82: 0 | AC82: 0 | AD82: 0 | AE82: 0 | AF82: 1 | AG82: 1 | AH82: 0 | AK82: 0 | AL82: 0.0 | CI82: 0.0000
A83: WP 74 | J83: 0.0 | K83: -0.0 | M83: < 1 h | N83: Vis | O83: Rdr | P83: Gps | AA83: 0 | AB83: 0 | AC83: 0 | AD83: 0 | AE83: 0 | AF83: 1 | AG83: 1 | AH83: 0 | AK83: 0 | AL83: 0.0 | CI83: 0.0000
A84: WP 75 | J84: 0.0 | K84: -0.0 | M84: < 1 h | N84: Vis | O84: Rdr | P84: Gps | AA84: 0 | AB84: 0 | AC84: 0 | AD84: 0 | AE84: 0 | AF84: 1 | AG84: 1 | AH84: 0 | AK84: 0 | AL84: 0.0 | CI84: 0.0000
A85: WP 76 | J85: 0.0 | K85: -0.0 | M85: < 1 h | N85: Vis | O85: Rdr | P85: Gps | AA85: 0 | AB85: 0 | AC85: 0 | AD85: 0 | AE85: 0 | AF85: 1 | AG85: 1 | AH85: 0 | AK85: 0 | AL85: 0.0 | CI85: 0.0000
A86: WP 77 | J86: 0.0 | K86: -0.0 | M86: < 1 h | N86: Vis | O86: Rdr | P86: Gps | AA86: 0 | AB86: 0 | AC86: 0 | AD86: 0 | AE86: 0 | AF86: 1 | AG86: 1 | AH86: 0 | AK86: 0 | AL86: 0.0 | CI86: 0.0000
A87: WP 78 | J87: 0.0 | K87: -0.0 | M87: < 1 h | N87: Vis | O87: Rdr | P87: Gps | AA87: 0 | AB87: 0 | AC87: 0 | AD87: 0 | AE87: 0 | AF87: 1 | AG87: 1 | AH87: 0 | AK87: 0 | AL87: 0.0 | CI87: 0.0000
A88: WP 79 | J88: 0.0 | K88: -0.0 | M88: < 1 h | N88: Vis | O88: Rdr | P88: Gps | AA88: 0 | AB88: 0 | AC88: 0 | AD88: 0 | AE88: 0 | AF88: 1 | AG88: 1 | AH88: 0 | AK88: 0 | AL88: 0.0 | CI88: 0.0000
A89: WP 80 | J89: 0.0 | K89: -0.0 | M89: < 1 h | N89: Vis | O89: Rdr | P89: Gps | AA89: 0 | AB89: 0 | AC89: 0 | AD89: 0 | AE89: 0 | AF89: 1 | AG89: 1 | AH89: 0 | AK89: 0 | AL89: 0.0 | CI89: 0.0000
A90: WP 81 | J90: 0.0 | K90: -0.0 | M90: < 1 h | N90: Vis | O90: Rdr | P90: Gps | AA90: 0 | AB90: 0 | AC90: 0 | AD90: 0 | AE90: 0 | AF90: 1 | AG90: 1 | AH90: 0 | AK90: 0 | AL90: 0.0 | CI90: 0.0000
A91: WP 82 | J91: 0.0 | K91: -0.0 | M91: < 1 h | N91: Vis | O91: Rdr | P91: Gps | AA91: 0 | AB91: 0 | AC91: 0 | AD91: 0 | AE91: 0 | AF91: 1 | AG91: 1 | AH91: 0 | AK91: 0 | AL91: 0.0 | CI91: 0.0000
A92: WP 83 | J92: 0.0 | K92: -0.0 | M92: < 1 h | N92: Vis | O92: Rdr | P92: Gps | AA92: 0 | AB92: 0 | AC92: 0 | AD92: 0 | AE92: 0 | AF92: 1 | AG92: 1 | AH92: 0 | AK92: 0 | AL92: 0.0 | CI92: 0.0000
A93: WP 84 | J93: 0.0 | K93: -0.0 | M93: < 1 h | N93: Vis | O93: Rdr | P93: Gps | AA93: 0 | AB93: 0 | AC93: 0 | AD93: 0 | AE93: 0 | AF93: 1 | AG93: 1 | AH93: 0 | AK93: 0 | AL93: 0.0 | CI93: 0.0000
A94: WP 85 | J94: 0.0 | K94: -0.0 | M94: < 1 h | N94: Vis | O94: Rdr | P94: Gps | AA94: 0 | AB94: 0 | AC94: 0 | AD94: 0 | AE94: 0 | AF94: 1 | AG94: 1 | AH94: 0 | AK94: 0 | AL94: 0.0 | CI94: 0.0000
A95: WP 86 | J95: 0.0 | K95: -0.0 | M95: < 1 h | N95: Vis | O95: Rdr | P95: Gps | AA95: 0 | AB95: 0 | AC95: 0 | AD95: 0 | AE95: 0 | AF95: 1 | AG95: 1 | AH95: 0 | AK95: 0 | AL95: 0.0 | CI95: 0.0000
A96: WP 87 | J96: 0.0 | K96: -0.0 | M96: < 1 h | N96: Vis | O96: Rdr | P96: Gps | AA96: 0 | AB96: 0 | AC96: 0 | AD96: 0 | AE96: 0 | AF96: 1 | AG96: 1 | AH96: 0 | AK96: 0 | AL96: 0.0 | CI96: 0.0000
A97: WP 88 | J97: 0.0 | K97: -0.0 | M97: < 1 h | N97: Vis | O97: Rdr | P97: Gps | AA97: 0 | AB97: 0 | AC97: 0 | AD97: 0 | AE97: 0 | AF97: 1 | AG97: 1 | AH97: 0 | AK97: 0 | AL97: 0.0 | CI97: 0.0000
A98: WP 89 | J98: 0.0 | K98: -0.0 | M98: < 1 h | N98: Vis | O98: Rdr | P98: Gps | AA98: 0 | AB98: 0 | AC98: 0 | AD98: 0 | AE98: 0 | AF98: 1 | AG98: 1 | AH98: 0 | AK98: 0 | AL98: 0.0 | CI98: 0.0000
A99: WP 90 | J99: 0.0 | K99: -0.0 | M99: < 1 h | N99: Vis | O99: Rdr | P99: Gps | AA99: 0 | AB99: 0 | AC99: 0 | AD99: 0 | AE99: 0 | AF99: 1 | AG99: 1 | AH99: 0 | AK99: 0 | AL99: 0.0 | CI99: 0.0000
A100: WP 91 | J100: 0.0 | K100: -0.0 | M100: < 1 h | N100: Vis | O100: Rdr | P100: Gps | AA100: 0 | AB100: 0 | AC100: 0 | AD100: 0 | AE100: 0 | AF100: 1 | AG100: 1 | AH100: 0 | AK100: 0 | AL100: 0.0 | CI100: 0.0000
A101: WP 92 | J101: 0.0 | K101: -0.0 | M101: < 1 h | N101: Vis | O101: Rdr | P101: Gps | AA101: 0 | AB101: 0 | AC101: 0 | AD101: 0 | AE101: 0 | AF101: 1 | AG101: 1 | AH101: 0 | AK101: 0 | AL101: 0.0 | CI101: 0.0000
A102: WP 93 | J102: 0.0 | K102: -0.0 | M102: < 1 h | N102: Vis | O102: Rdr | P102: Gps | AA102: 0 | AB102: 0 | AC102: 0 | AD102: 0 | AE102: 0 | AF102: 1 | AG102: 1 | AH102: 0 | AK102: 0 | AL102: 0.0 | CH102: =I102 ->  | CI102: =J102 -> 0.0000
A103: WP 94 | J103: 0.0 | K103: -0.0 | M103: < 1 h | N103: Vis | O103: Rdr | P103: Gps | AA103: 0 | AB103: 0 | AC103: 0 | AD103: 0 | AE103: 0 | AF103: 1 | AG103: 1 | AH103: 0 | AK103: 0 | AL103: 0.0 | CI103: 0.0000
A104: WP 95 | J104: 0.0 | K104: -0.0 | M104: < 1 h | N104: Vis | O104: Rdr | P104: Gps | AA104: 0 | AB104: 0 | AC104: 0 | AD104: 0 | AE104: 0 | AF104: 1 | AG104: 1 | AH104: 0 | AK104: 0 | AL104: 0.0 | CI104: 0.0000
A105: WP 96 | J105: 0.0 | K105: -0.0 | M105: < 1 h | N105: Vis | O105: Rdr | P105: Gps | AA105: 0 | AB105: 0 | AC105: 0 | AD105: 0 | AE105: 0 | AF105: 1 | AG105: 1 | AH105: 0 | AK105: 0 | AL105: 0.0 | CI105: 0.0000
A106: WP 97 | J106: 0.0 | K106: -0.0 | M106: < 1 h | N106: Vis | O106: Rdr | P106: Gps | AA106: 0 | AB106: 0 | AC106: 0 | AD106: 0 | AE106: 0 | AF106: 1 | AG106: 1 | AH106: 0 | AK106: 0 | AL106: 0.0 | CI106: 0.0000
A107: WP 98 | J107: 0.0 | K107: -0.0 | M107: < 1 h | N107: Vis | O107: Rdr | P107: Gps | AA107: 0 | AB107: 0 | AC107: 0 | AD107: 0 | AE107: 0 | AF107: 1 | AG107: 1 | AH107: 0 | AK107: 0 | AL107: 0.0 | CI107: 0.0000
A108: WP 99 | I108: =IF(C108="","",IF(AD108<AC108,360-AJ108,AJ108)) ->  | J108: =IF(C108="",0,+AL108) -> 0.0 | K108: =+K107-J107 -> -0.0 | M108: < 1 h | N108: Vis | O108: Rdr | P108: Gps | AA108: 0 | AB108: 0 | AE108: 0 | AF108: 1 | AG108: 1 | CI108: 0.0000
J109: =SUM(J10:J108) -> 16016.1

Sheet Arrival Port Info
A3: PORT OF ARRIVAL INFORMATION
A4: Passage Plan Name on ECDIS
A5: User Chart Name on ECDIS
A6: Name of Arrival Berth
A7: VHF Channel(s) - Port Control
A8: VHF Channel(s) - VTS
A9: VHF Channel(s) - Pilots
A10: Tidal Information
A11: Standard Port
A12: Date
B13: TIME | C13: HEIGHT
A14: High Water | D14: Mtrs
A15: Low Water | D15: =$D$14 -> Mtrs
A16: High Water | D16: =$D$14 -> Mtrs
A17: Low Water | D17: =$D$14 -> Mtrs
A18: Estimated Draft on Arrival
A19: Forward | C19: Mtrs
A20: Aft | C20: Mtrs
A21: Mean | C21: Mtrs
A22: Vessel’s Maximum Air-draft | C22: Mtrs
A23: Distance - Berth to Pilot Station | C23: NM
A24: Estimated Time to Pilot Station | C24: Hours
A25: Is There a Change of Pilots?
A26: If Yes, Where
A27: Number of Tugs
A28: Location Tugs will approach Vessel
A29: Remarks: (General route, channel to use, special precaution, etc)
A31: Prevailing Current / Weather Information

Sheet Arrival Port Safet Setting
A1: Safety Setting Arrival Port
A2: Beam: | B2: 32 | C2: Cb: | D2: 0.7786
A3: AREA | B3: Ocean Passage (Open) | C3: Fairways outside ports (Coastal / Shallow waters) | D3: Fairways inside ports (Within Port Limits / Restricted Waters) | E3: Remarks
A4: MAX. SPEED | B4: 12.50 | C4: 12.50 | D4: 6.00
A5: DEEPEST DRAFT | B5: 10.00 | C5: 4.90 | D5: 19.80 | E5: Static Draft
A6: TOTAL CALCULATED SQUAT | B6: 2.00 | C6: 1.16 | D6: 0.56
A7: SAFETY MARGIN | B7: 2.00 | C7: 2.00 | D7: 1.42 | E7: Ensure it is equal to A3 in NAV 02 (Catzoc Consideration Tab).
A8: MINIMUM UKC REQUIRED | B8: =(B5+B6+B7)/2 -> 7.00 | C8: =(C5+C6+C7)*0.15 -> 1.21 | D8: =IF(F8>G8,F8,G8) -> 0.60 | F8: =B2*0.015 -> 0.48 | G8: 0.6
A9: TIDE | B9: 0.00 | C9: 0.00 | D9: 0.00
A10: SAFETY DEPTH | B10: =IF((B5+B6+B8+B7-B9)<B5,ROUNDUP(B5,0),ROUNDUP((B5+B6+B8+B7-B9),0)) -> 21.00 | C10: =IF((C5+C6+C8+C7-C9)<C5,ROUNDUP(C5,0),ROUNDUP((C5+C6+C8+C7-C9),0)) -> 10.00 | D10: =IF((D5+D6+D8+D7-D9)<D5,ROUNDUP(D5,0),ROUNDUP((D5+D6+D8+D7-D9),0)) -> 23.00
A11: SAFETY CONTOUR | B11: =B10 -> 21.00 | C11: =C10 -> 10.00 | D11: =D10 -> 23.00
A12: SHALLOW CONTOUR | B12: =IF(ROUNDUP((B5+1),0)>=B11,B5,ROUNDUP((B5+1),0)) -> 11.00 | C12: =IF(ROUNDUP((C5+1),0)>=C11,C5,ROUNDUP((C5+1),0)) -> 6.00 | D12: 21.00
A13: DEEP CONTOUR | B13: =ROUNDUP((F13*2),0) -> 24.00 | C13: =ROUNDUP((G13*2),0) -> 13.00 | D13: =ROUNDUP((H13*2),0) -> 41.00 | F13: =B5+B6 -> 12.00 | G13: =C5+C6 -> 6.06 | H13: =D5+D6 -> 20.36
A14: Look Ahead Settings | E14: FOM 3.29 Section 5.6
A15: Cross Track Distance | E15: FOM 3.29 Section 5.8
A17: SHALLOW CONTOUR = Next contour shallower than safety contour/must not be less than vessel’s draft
A18: SAFETY DEPTH = Vessel Draft + Dynamic Squat + UKC + Safety Margin - Height of Tide
A19: SAFETY CONTOUR = Safety contour should be set at a value equal to the safety depth
A20: DEPTH CONTOUR = Twice the Dynamic Draft (Max. Static draft + Squat)
A21: ECHO SOUNDER = Ensure alarm, if fitted, is used for safe navigation.
A22: NOTE (when marking NO GO AREA on ECDIS):
A24: Shallow Contour should not be confused by the wording 'contour'. The safe/unsafe contour for Navigation is the safety contour. A shallow contour is only for additional indication of the underwater topography of the already 'un-safe' water; it is not calculation between draft and tide values. Reminding once again that the safety of the navigation is only to be dependent upon the 'Safety Contour' & 'Safety Depth' mentioned above.
A25: All ECDIS parameters set prior to the beginning of the voyage must not be removed/changed/de-activated without permission from the Master. Any safety parameters to be re-set to original settings after planning/trial/simulation mode
A27: Prepared by :
B28: Second Officer
A30: Calculation confirmed by :
B31: Master

Sheet Pilot to Berth
B3: All dates & times are GMT | L3: =+'Vsl Details'!C7 -> M/T Example
B4: PILOTS | D4: SPD | F4: Voy : | G4: =+'Vsl Details'!C9 -> 11 | H4: =+'Vsl Details'!C10 -> Loaded | K4: Time | AT4: Yes
B5: 2005-07-22T12:00:00 | D5: 14.3 | F5: From : | G5: ='Checklist A'!$G$8 -> Singapore | K5: =+'Vsl Details'!C14 -> 8 | L5: To : | M5: ='Checklist A'!$G$9 -> Rotterdam | P5: =+'Vsl Details'!C18 -> 1 | W5: Pilot to Berth | AT5: No
AT6: Level 1
A7: WP No. | B7: GEOGRAPHICAL AREA WAYPOINT | C7: LATITUDE | F7: LONGITUDE | I7: CO | J7: DIST. TO NEXT WP | K7: DTG | L7: RL/GC | M7: Verification Freq / Method | Q7: Max Spd (kts) | R7: T&P Notices | S7: Safety Setting | T7: UKC | U7: MARPOL Special area / ECA Zone | V7: Security Level | W7: Remarks: NAV Aids, Restrictions, Weather, Cautions, Traffic Density, UKC, Tides etc, T&P notice number effecting each leg, extra lookout if passing through HRA, Area where vessel should be hardened. | X7: Watch Level | AT7: Level 2
AA8: latrad | AB8: longrad | AC8: dlon_W | AD8: dlon_E | AE8: dphi | AF8: q1 | AG8: q | AH8: dlon_min | AI8: tc_rad | AJ8: tc | AK8: dist_rad | AL8: dist | AT8: Level 3
C9: DEG | D9: MIN | E9: N/S | F9: DEG | G9: MIN | H9: E/W | M9: Freq | N9: Main | O9: Alt 1 | P9: Alt 2 | U9: Yes / No | X9: Bridge | Y9: E/R | AT9: Ocean Passage (Open) | AU9: Fairways outside ports (Coastal / Shallow waters) | AV9: Fairways inside ports (Within Port Limits / Restricted Waters) | CH9: Course | CI9: Distance
A10: PB 1 | B10: PILOT STATION | C10: 27° | D10: 00.00` | E10: S | F10: 160° | G10: 09.00` | H10: E | I10: =IF(C11="","",IF(AD10<AC10,360-AJ10,AJ10)) -> 028° | J10: =IF(C11="",0,+AL10) -> 3674.5 | K10: =+J40 -> 16016.1 | M10: < 1 h | N10: Vis | O10: Rdr | P10: Gps | R10: Yes | S10: Ocean Passage (Open) | U10: No | V10: Level 1 | AA10: =IF(E10="N",RADIANS(C10+(D10/60)),-RADIANS(C10+(D10/60))) -> -0.471238898 | AB10: =IF(H10="E",+RADIANS(F10+(G10/60)),-RADIANS(F10+(G10/60))) -> 2.795144797 | AC10: =MOD(AB11-AB10,2*PI()) -> 0.5175483009 | AD10: =MOD(AB10-AB11,2*PI()) -> 5.765637006 | AE10: =LN(TAN(AA11/2+PI()/4)/TAN(AA10/2+PI()/4)) -> 0.9831883811 | AF10: =COS(AA10) -> 0.8910065242 | AG10: =IF(AA11=AA10,AF10,(AA11-AA10)/AE10) -> 0.9619957159 | AH10: =MIN(AC10,AD10) -> 0.5175483009 | AI10: =MOD(ATAN2(AE10,AH10),2*PI()) -> 0.4845422274 | AJ10: =DEGREES(AI10) -> 27.8 | AK10: =SQRT(AG10^2*AH10^2+(AA11-AA10)^2) -> 1.068861503 | AL10: =DEGREES(AK10)*60 -> 3674.5 | CH10: =I10 -> 27.76222 | CI10: =J10 -> 3674.4752
A11: PB 2 | B11: GHAR BUOY | C11: 27° | D11: 11.50` | E11: N | F11: 170° | G11: 11.80` | H11: W | I11: 270° | J11: 7410.1 | K11: =+K10-J10 -> 12341.6 | M11: < 1 h | N11: Vis | O11: Rdr | P11: Gps | AA11: =IF(E11="N",RADIANS(C11+(D11/60)),-RADIANS(C11+(D11/60))) -> 0.4745841124 | AB11: =IF(H11="E",+RADIANS(F11+(G11/60)),-RADIANS(F11+(G11/60))) -> -2.970492209 | AC11: =MOD(AB12-AB11,2*PI()) -> 3.859882907 | AD11: =MOD(AB11-AB12,2*PI()) -> 2.4233024 | AE11: =LN(TAN(AA12/2+PI()/4)/TAN(AA11/2+PI()/4)) -> -3.270282687e-05 | AF11: =COS(AA11) -> 0.8894828461 | AG11: =IF(AA12=AA11,AF11,(AA12-AA11)/AE11) -> 0.8894894923 | AH11: =MIN(AC11,AD11) -> 2.4233024 | AI11: =MOD(ATAN2(AE11,AH11),2*PI()) -> 1.570809822 | AJ11: =DEGREES(AI11) -> 90.0 | AK11: =SQRT(AG11^2*AH11^2+(AA12-AA11)^2) -> 2.155502022 | AL11: =DEGREES(AK11)*60 -> 7410.1 | CH11: 269.99923 | CI11: 7410.0701
A12: PB 3 | B12: RAS TANNURAH RACON (K) | C12: 27° | D12: 11.40` | E12: N | F12: 050° | G12: 57.50` | H12: E | I12: 099° | J12: 60.8 | K12: =+K11-J11 -> 4931.6 | M12: < 1 h | N12: Vis | O12: Rdr | P12: Gps | AA12: =IF(E12="N",RADIANS(C12+(D12/60)),-RADIANS(C12+(D12/60))) -> 0.4745550236 | AB12: =IF(H12="E",+RADIANS(F12+(G12/60)),-RADIANS(F12+(G12/60))) -> 0.889390698 | AC12: 0.01963495408 | AD12: 6.263550353 | AE12: -0.003071889606 | AF12: 0.8894961384 | AG12: 0.8901196046 | AH12: 0.01963495408 | AI12: 1.725988348 | AJ12: 98.9 | AK12: 0.01769005903 | AL12: 60.8 | CH12: 98.89185 | CI12: 60.8139
A13: PB 4 | B13: FIELD | C13: 27° | D13: 02.00` | E13: N | F13: 052° | G13: 05.00` | H13: E | I13: 132° | J13: 30.0 | K13: 4870.7 | M13: < 1 h | N13: Vis | O13: Rdr | P13: Gps | AA13: 0.4718206745 | AB13: 0.9090256521 | AC13: 0.007272205217 | AD13: 6.275913102 | AE13: -0.006521728036 | AF13: 0.8907422525 | AG13: 0.8920586907 | AH13: 0.007272205217 | AI13: 2.301841754 | AJ13: 131.9 | AK13: 0.00871381565 | AL13: 30.0 | CH13: 131.88582 | CI13: 29.9559
A14: PB 5 | B14: CABLE BANK | C14: 26° | D14: 42.00` | E14: N | F14: 052° | G14: 30.00` | H14: E | I14: 106° | J14: 104.6 | K14: 4840.8 | M14: < 1 h | N14: Vis | O14: Rdr | P14: Gps | AA14: 0.4660029103 | AB14: 0.9162978573 | AC14: 0.03257947937 | AD14: 6.250605828 | AE14: -0.009649705906 | AF14: 0.8933713883 | AG14: 0.8952998031 | AH14: 0.03257947937 | AI14: 1.858753769 | AJ14: 106.5 | AK14: 0.0304209554 | AL14: 104.6 | CH14: 106.49875 | CI14: 104.5795
A15: PB 6 | B15: FORUR ISLAND | C15: 26° | D15: 12.30` | E15: N | F15: 054° | G15: 22.00` | H15: E | I15: 097° | J15: 50.2 | K15: 4736.2 | M15: < 1 h | N15: Vis | O15: Rdr | P15: Gps | AA15: 0.4573635305 | AB15: 0.9488773367 | AC15: 0.01614429558 | AD15: 6.267041012 | AE15: -0.001879642259 | AF15: 0.8972198376 | AG15: 0.8975918702 | AH15: 0.01614429558 | AI15: 1.686702132 | AJ15: 96.6 | AK15: 0.0145888734 | AL15: 50.2 | CH15: 96.64091 | CI15: 50.1529
A16: PB 7 | B16: TONBE ISLAND | C16: 26° | D16: 06.50` | E16: N | F16: 055° | G16: 17.50` | H16: E | I16: 070° | J16: 11.9 | K16: 4686.1 | M16: < 1 h | N16: Vis | O16: Rdr | P16: Gps | AA16: 0.4556763789 | AB16: 0.9650216322 | AC16: 0.003636102608 | AD16: 6.279549205 | AE16: 0.001296138279 | AF16: 0.8979635797 | AG16: 0.8977073305 | AH16: 0.003636102608 | AI16: 1.228374921 | AJ16: 70.4 | AK16: 0.003465338276 | AL16: 11.9 | CH16: 70.38070 | CI16: 11.9130
A17: PB 8 | B17: TSS OUT | C17: 26° | D17: 10.50` | E17: N | F17: 055° | G17: 30.00` | H17: E | I17: 067° | J17: 51.7 | K17: 4674.1 | M17: < 1 h | N17: Vis | O17: Rdr | P17: Gps | AA17: 0.4568399317 | AB17: 0.9686577349 | AC17: 0.01541707506 | AD17: 6.267768232 | AE17: 0.006654402881 | AF17: 0.8974509275 | AG17: 0.896129733 | AH17: 0.01541707506 | AI17: 1.163327224 | AJ17: 66.7 | AK17: 0.0150477042 | AL17: 51.7 | CH17: 66.65374 | CI17: 51.7302
A18: PB 9 | B18: TSS HORMUZ 1 | C18: 26° | D18: 31.00` | E18: N | F18: 056° | G18: 23.00` | H18: E | I18: 065° | J18: 5.7 | K18: 4622.4 | M18: < 1 h | N18: Vis | O18: Rdr | P18: Gps | AA18: 0.46280314 | AB18: 0.9840748099 | AC18: 0.00168715161 | AD18: 6.281498156 | AE18: 0.0007803417977 | AF18: 0.8948045301 | AG18: 0.894648605 | AH18: 0.00168715161 | AI18: 1.13757947 | AJ18: 65.2 | AK18: 0.001663039351 | AL18: 5.7 | CH18: 65.17850 | CI18: 5.7171
A19: PB 10 | B19: TSS HORMUZ 2 | C19: 26° | D19: 33.40` | E19: N | F19: 056° | G19: 28.80` | H19: E | I19: 090° | J19: 3.6 | K19: 4616.7 | M19: < 1 h | N19: Vis | O19: Rdr | P19: Gps | AA19: 0.4635012717 | AB19: 0.9857619615 | AC19: 0.001163552835 | AD19: 6.282021754 | AE19: 0 | AF19: 0.8944926255 | AG19: 0.8944926255 | AH19: 0.001163552835 | AI19: 1.570796327 | AJ19: 90.0 | AK19: 0.00104078943 | AL19: 3.6 | CH19: 90.00000 | CI19: 3.5780
A20: PB 11 | B20: TSS HORMUZ 3 | C20: 26° | D20: 33.40` | E20: N | F20: 056° | G20: 32.80` | H20: E | I20: 149° | J20: 62.1 | K20: 4613.1 | M20: < 1 h | N20: Vis | O20: Rdr | P20: Gps | AA20: 0.4635012717 | AB20: 0.9869255144 | AC20: 0.01023926495 | AD20: 6.272946042 | AE20: -0.01729925893 | AF20: 0.8944926255 | AG20: 0.8979246106 | AH20: 0.01023926495 | AI20: 2.607157448 | AJ20: 149.4 | AK20: 0.01805044908 | AL20: 62.1 | CH20: 149.37912 | CI20: 62.0529
A21: PB 12 | B21: RAS AL KUH 1 | C21: 25° | D21: 40.00` | E21: N | F21: 057° | G21: 08.00` | H21: E | I21: 140° | J21: 13.1 | K21: 4551.1 | M21: < 1 h | N21: Vis | O21: Rdr | P21: Gps | AA21: 0.4479678413 | AB21: 0.9971647793 | AC21: 0.002705260341 | AD21: 6.280480047 | AE21: -0.003225075904 | AF21: 0.9013291614 | AG21: 0.9019577131 | AH21: 0.002705260341 | AI21: 2.443624675 | AJ21: 140.0 | AK21: 0.003796754337 | AL21: 13.1 | CH21: 140.00938 | CI21: 13.0523
A22: PB 13 | B22: RAS AL KUH 2 | C22: 25° | D22: 30.00` | E22: N | F22: 057° | G22: 17.30` | H22: E | I22: 136° | J22: 124.5 | K22: 4538.0 | M22: < 1 h | N22: Vis | O22: Rdr | P22: Gps | AA22: 0.4450589593 | AB22: 0.9998700396 | AC22: 0.02754711336 | AD22: 6.255638194 | AE22: -0.02882915937 | AF22: 0.9025852843 | AG22: 0.9081062144 | AH22: 0.02754711336 | AI22: 2.378931451 | AJ22: 136.3 | AK22: 0.03621014613 | AL22: 124.5 | CH22: 136.30273 | CI22: 124.4813
A23: PB 14 | B23: 24° NORTH | C23: 24° | D23: 00.00` | E23: N | F23: 058° | G23: 52.00` | H23: E | I23: 136° | J23: 110.5 | K23: 4413.5 | M23: < 1 h | N23: Vis | O23: Rdr | P23: Gps | AA23: 0.4188790205 | AB23: 1.027417153 | AC23: 0.02414372132 | AD23: 6.259041586 | AE23: -0.02534455349 | AF23: 0.9135454576 | AG23: 0.918187677 | AH23: 0.02414372132 | AI23: 2.380454713 | AJ23: 136.4 | AK23: 0.0321400533 | AL23: 110.5 | CH23: 136.39001 | CI23: 110.4894
A24: PB 15 | B24: RAS AL HADD | C24: 22° | D24: 40.00` | E24: N | F24: 060° | G24: 15.00` | H24: E | I24: 180° | J24: 40.0 | K24: 4303.0 | M24: < 1 h | N24: Vis | O24: Rdr | P24: Gps | AA24: 0.3956079638 | AB24: 1.051560874 | AC24: 0 | AD24: 0 | AE24: -0.01257919674 | AF24: 0.9227624444 | AG24: 0.924981824 | AH24: 0 | AI24: 3.141592654 | AJ24: 180.0 | AK24: 0.01163552835 | AL24: 40.0 | CH24: 180.00000 | CI24: 40.0000
A25: PB 16 | B25: RAS QUMAYLAH | C25: 22° | D25: 00.00` | E25: N | F25: 060° | G25: 15.00` | H25: E | I25: 204° | J25: 618.9 | K25: 4263.0 | M25: < 1 h | N25: Vis | O25: Rdr | P25: Gps | AA25: 0.3839724354 | AB25: 1.051560874 | AC25: 6.206099932 | AD25: 0.0770853753 | AE25: -0.1723632862 | AF25: 0.9271838546 | AG25: 0.953519984 | AH25: 0.0770853753 | AI25: 2.721047825 | AJ25: 155.9 | AK25: 0.1800392628 | AL25: 618.9 | CH25: 204.09544 | CI25: 618.9294
A26: PB 17 | B26: SUQUTRA | C26: 12° | D26: 35.00` | E26: N | F26: 055° | G26: 50.00` | H26: E | I26: 209° | J26: 1647.4 | K26: 3644.1 | M26: < 1 h | N26: Vis | O26: Rdr | P26: Gps | AA26: 0.2196205975 | AB26: 0.974475499 | AC26: 6.051347405 | AD26: 0.2318379023 | AE26: -0.4234819293 | AF26: 0.9759801759 | AG26: 0.9925652842 | AH26: 0.2318379023 | AI26: 2.640704382 | AJ26: 151.3 | AK26: 0.4792001549 | AL26: 1647.4 | CH26: 208.69878 | CI26: 1647.3688
A27: PB 18 | B27: COMORES | C27: 11° | D27: 30.00` | E27: S | F27: 042° | G27: 33.00` | H27: E | I27: 198° | J27: 284.7 | K27: 1996.7 | M27: < 1 h | N27: Vis | O27: Rdr | P27: Gps | AA27: -0.200712864 | AB27: 0.7426375967 | AC27: 6.256132704 | AD27: 0.02705260341 | AE27: -0.08088029244 | AF27: 0.9799247046 | AG27: 0.9710624674 | AH27: 0.02705260341 | AI27: 2.818813088 | AJ27: 161.5 | AK27: 0.08281668583 | AL27: 284.7 | CH27: 198.49391 | CI27: 284.7028
A28: PB 19 | B28: MOZAMBIQUE | C28: 16° | D28: 00.00` | E28: S | F28: 041° | G28: 00.00` | H28: E | I28: 208° | J28: 606.4 | K28: 1712.0 | M28: < 1 h | N28: Vis | O28: Rdr | P28: Gps | AA28: -0.2792526803 | AB28: 0.7155849933 | AC28: 6.194464404 | AD28: 0.08872090364 | AE28: -0.1663165438 | AF28: 0.9612616959 | AG28: 0.9357168451 | AH28: 0.08872090364 | AI28: 2.651547575 | AJ28: 151.9 | AK28: 0.1763834729 | AL28: 606.4 | CH28: 208.07751 | CI28: 606.3617
A29: PB 20 | B29: PUNTA ZAVORA | C29: 24° | D29: 55.00` | E29: S | F29: 035° | G29: 55.00` | H29: E | I29: 216° | J29: 285.7 | K29: 1105.7 | M29: < 1 h | N29: Vis | O29: Rdr | P29: Gps | AA29: -0.434877872 | AB29: 0.6268640897 | AC29: 6.227916548 | AD29: 0.05526875965 | AE29: -0.0749987788 | AF29: 0.9069215016 | AG29: 0.8920716986 | AH29: 0.05526875965 | AI29: 2.506509736 | AJ29: 143.6 | AK29: 0.08310859294 | AL29: 285.7 | CH29: 216.38757 | CI29: 285.7063
A30: PB 21 | B30: CAPE SANTA LUCIA | C30: 28° | D30: 45.00` | E30: S | F30: 032° | G30: 45.00` | H30: E | I30: 216° | J30: 159.3 | K30: 820.0 | M30: < 1 h | N30: Vis | O30: Rdr | P30: Gps | AA30: -0.5017821599 | AB30: 0.57159533 | AC30: 6.251594848 | AD30: 0.03159045946 | AE30: -0.04305439351 | AF30: 0.8767267557 | AG30: 0.8675083528 | AH30: 0.03159045946 | AI30: 2.508583514 | AJ30: 143.7 | AK30: 0.04632557903 | AL30: 159.3 | CH30: 216.26875 | CI30: 159.2556
A31: PB 22 | B31: SOUTH OF DURBAN | C31: 30° | D31: 53.40` | E31: S | F31: 030° | G31: 56.40` | H31: E | I31: 220° | J31: 208.9 | K31: 660.7 | M31: < 1 h | N31: Vis | O31: Rdr | P31: Gps | AA31: -0.5391322059 | AB31: 0.5400048706 | AC31: 6.236817727 | AD31: 0.04636758046 | AE31: -0.05488516738 | AF31: 0.8581545225 | AG31: 0.8458707574 | AH31: 0.04636758046 | AI31: 2.44011893 | AJ31: 139.8 | AK31: 0.06077529366 | AL31: 208.9 | CH31: 220.19148 | CI31: 208.9301
A32: PB 23 | B32: EAST LONDON | C32: 33° | D32: 33.00` | E32: S | F32: 028° | G32: 17.00` | H32: E | I32: 241° | J32: 87.1 | K32: 451.8 | M32: < 1 h | N32: Vis | O32: Rdr | P32: Gps | AA32: -0.585557964 | AB32: 0.4936372901 | AC32: 6.256423592 | AD32: 0.0267617152 | AE32: -0.01471960065 | AF32: 0.8334038487 | AG32: 0.8300024611 | AH32: 0.0267617152 | AI32: 2.073658394 | AJ32: 118.8 | AK32: 0.02535050965 | AL32: 87.1 | CH32: 241.18813 | CI32: 87.1486
A33: PB 24 | B33: WEST OF CAPE RECIFE | C33: 34° | D33: 15.00` | E33: S | F33: 026° | G33: 45.00` | H33: E | I33: 257° | J33: 96.6 | K33: 364.6 | M33: < 1 h | N33: Vis | O33: Rdr | P33: Gps | AA33: -0.5977752688 | AB33: 0.4668755749 | AC33: 6.250024051 | AD33: 0.03316125579 | AE33: -0.007759069702 | AF33: 0.8265897491 | AG33: 0.8247819437 | AH33: 0.03316125579 | AI33: 1.800641423 | AJ33: 103.2 | AK33: 0.02808951146 | AL33: 96.6 | CH33: 256.83085 | CI33: 96.5646
A34: PB 25 | B34: CAPE ST. FRANCIS | C34: 34° | D34: 37.00` | E34: S | F34: 024° | G34: 51.00` | H34: E | I34: 266° | J34: 124.4 | K34: 268.1 | M34: < 1 h | N34: Vis | O34: Rdr | P34: Gps | AA34: -0.6041748094 | AB34: 0.4337143191 | AC34: 6.239261188 | AD34: 0.04392411951 | AE34: -0.002829964151 | AF34: 0.8229711547 | AG34: 0.8223092397 | AH34: 0.04392411951 | AI34: 1.635135878 | AJ34: 93.7 | AK34: 0.03619409762 | AL34: 124.4 | CH34: 266.31362 | CI34: 124.4261
A35: PB 26 | B35: TSS IN | C35: 34° | D35: 45.00` | E35: S | F35: 022° | G35: 20.00` | H35: E | I35: 262° | J35: 78.8 | K35: 143.6 | M35: < 1 h | N35: Vis | O35: Rdr | P35: Gps | AA35: -0.6065019151 | AB35: 0.3897901996 | AC35: 6.255550927 | AD35: 0.02763437982 | AE35: -0.004076091648 | AF35: 0.8216469379 | AG35: 0.8206916548 | AH35: 0.02763437982 | AI35: 1.717241125 | AJ35: 98.4 | AK35: 0.02292468823 | AL35: 78.8 | CH35: 261.60933 | CI35: 78.8093
A36: PB 27 | B36: TSS OUT | C36: 34° | D36: 56.50` | E36: S | F36: 020° | G36: 45.00` | H36: E | I36: 245° | J36: 36.0 | K36: 64.8 | M36: < 1 h | N36: Vis | O36: Rdr | P36: Gps | AA36: -0.6098471295 | AB36: 0.3621558198 | AC36: 6.271549779 | AD36: 0.01163552835 | AE36: -0.005330989306 | AF36: 0.8197355828 | AG36: 0.8184828143 | AH36: 0.01163552835 | AI36: 2.000419306 | AJ36: 114.6 | AK36: 0.01047545989 | AL36: 36.0 | CH36: 245.38442 | CI36: 36.0120
A37: PB 28 | B37: CAPE AGULHAS | C37: 35° | D37: 11.50` | E37: S | F37: 020° | G37: 05.00` | H37: E | I37: 277° | J37: 28.8 | K37: 28.8 | M37: < 1 h | N37: Vis | O37: Rdr | P37: Gps | AA37: -0.6142104526 | AB37: 0.3505202914 | AC37: 6.27300422 | AD37: 0.0101810873 | AE37: 0.001245359539 | AF37: 0.8172287284 | AG37: 0.817521927 | AH37: 0.0101810873 | AI37: 1.449080101 | AJ37: 83.0 | AK37: 0.008385298895 | AL37: 28.8 | CH37: 276.97383 | CI37: 28.8265
A38: PB 29 | B38: QUOIN POINT | C38: 35° | D38: 08.00` | E38: S | F38: 019° | G38: 30.00` | H38: E | J38: 0.0 | K38: -0.0 | M38: < 1 h | N38: Vis | O38: Rdr | P38: Gps | AA38: -0.6131923439 | AB38: 0.3403392041 | AC38: 5.942846103 | AD38: 0.3403392041 | AE38: 0.6556797708 | AF38: 0.8178150545 | AG38: 0.9352009489 | AH38: 0.3403392041 | AI38: 0.4787815606 | AJ38: 27.4 | AK38: 0.6908766459 | AL38: 2375.1 | CI38: 0.0000
A39: PB 30 | I39: =IF(C39="","",IF(AD39<AC39,360-AJ39,AJ39)) ->  | J39: =IF(C39="",0,+AL39) -> 0.0 | K39: =+K38-J38 -> -0.0 | M39: < 1 h | N39: Vis | O39: Rdr | P39: Gps | AA39: 0 | AB39: 0 | AC39: 0 | AD39: 0 | AE39: 0 | AF39: 1 | AG39: 1 | AH39: 0 | AK39: 0 | AL39: 0.0 | CI39: 0.0000
F40: TOTAL DISTANCE: | J40: =SUM(J10:J39) -> 16016.1

Sheet Implementation
D3: NAV-01 | I3: Doc No : NAV-01
F4: PASSAGE PLAN | I4: Revision: 01 Date: 15 Oct 2024
I5: Issued by: DPA Approved by: MD
A8: To be filled by the Duty Officer in whose watch the next Voyage Chart is to be used
A9: CHARTS | B9: CHARTS | C9: Chart Corrected upto | D9: NO-GO Areas ( As per BTM Practical Guide Diag 1) | E9: Margins Of Safety ( As per BTM Practical Guide Diag 2) | F9: Chart Change (Clearly Marked) | G9: Under Keel Clearance ( Is Filled TSM 002 - available if applicable) | H9: Wheel-Over Position ( As per BTM Practical Guide Diag 4 WOP) | I9: Parallel Index ( As per BTM Practical Guide Diag 5 ) | J9: Abort Position / Contigency Plan advocated | K9: Position Fixing Method & Interval | L9: T&P Notices | M9: Duty Officer's Initials
A10: =+'Checklist A'!J15 -> 1111 | B10: =IF(A10=0,"",A10) -> 1111 | D10: [ ] | E10: [ ] | F10: [ ] | G10: [ ] | H10: [ ] | I10: [ ] | J10: [ ] | K10: [ ] | L10: [ ]
A11: =+'Checklist A'!K15 -> 2222 | B11: =IF(A11=0,"",A11) -> 2222 | D11: [ ] | E11: [ ] | F11: [ ] | G11: [ ] | H11: [ ] | I11: [ ] | J11: [ ] | K11: [ ] | L11: [ ]
A12: =+'Checklist A'!M15 -> 3333 | B12: 3333 | D12: [ ] | E12: [ ] | F12: [ ] | G12: [ ] | H12: [ ] | I12: [ ] | J12: [ ] | K12: [ ] | L12: [ ]
A13: =+'Checklist A'!N15 -> 4444 | B13: 4444 | D13: [ ] | E13: [ ] | F13: [ ] | G13: [ ] | H13: [ ] | I13: [ ] | J13: [ ] | K13: [ ] | L13: [ ]
A14: =+'Checklist A'!O15 -> 5555 | B14: 5555 | D14: [ ] | E14: [ ] | F14: [ ] | G14: [ ] | H14: [ ] | I14: [ ] | J14: [ ] | K14: [ ] | L14: [ ]
A15: =+'Checklist A'!P15 -> 6666 | B15: 6666 | D15: [ ] | E15: [ ] | F15: [ ] | G15: [ ] | H15: [ ] | I15: [ ] | J15: [ ] | K15: [ ] | L15: [ ]
A16: =+'Checklist A'!J16 -> 0 | D16: [ ] | E16: [ ] | F16: [ ] | G16: [ ] | H16: [ ] | I16: [ ] | J16: [ ] | K16: [ ] | L16: [ ]
A17: =+'Checklist A'!K16 -> 0 | D17: [ ] | E17: [ ] | F17: [ ] | G17: [ ] | H17: [ ] | I17: [ ] | J17: [ ] | K17: [ ] | L17: [ ]
A18: =+'Checklist A'!M16 -> 0 | D18: [ ] | E18: [ ] | F18: [ ] | G18: [ ] | H18: [ ] | I18: [ ] | J18: [ ] | K18: [ ] | L18: [ ]
A19: =+'Checklist A'!N16 -> 0 | D19: [ ] | E19: [ ] | F19: [ ] | G19: [ ] | H19: [ ] | I19: [ ] | J19: [ ] | K19: [ ] | L19: [ ]
A20: =+'Checklist A'!O16 -> 0 | D20: [ ] | E20: [ ] | F20: [ ] | G20: [ ] | H20: [ ] | I20: [ ] | J20: [ ] | K20: [ ] | L20: [ ]
A21: =+'Checklist A'!P16 -> 0 | D21: [ ] | E21: [ ] | F21: [ ] | G21: [ ] | H21: [ ] | I21: [ ] | J21: [ ] | K21: [ ] | L21: [ ]
A22: =+'Checklist A'!J17 -> 0 | D22: [ ] | E22: [ ] | F22: [ ] | G22: [ ] | H22: [ ] | I22: [ ] | J22: [ ] | K22: [ ] | L22: [ ]
A23: =+'Checklist A'!K17 -> 0 | D23: [ ] | E23: [ ] | F23: [ ] | G23: [ ] | H23: [ ] | I23: [ ] | J23: [ ] | K23: [ ] | L23: [ ]
A24: =+'Checklist A'!M17 -> 0 | D24: [ ] | E24: [ ] | F24: [ ] | G24: [ ] | H24: [ ] | I24: [ ] | J24: [ ] | K24: [ ] | L24: [ ]
A25: =+'Checklist A'!N17 -> 0 | D25: [ ] | E25: [ ] | F25: [ ] | G25: [ ] | H25: [ ] | I25: [ ] | J25: [ ] | K25: [ ] | L25: [ ]
A26: =+'Checklist A'!O17 -> 0 | D26: [ ] | E26: [ ] | F26: [ ] | G26: [ ] | H26: [ ] | I26: [ ] | J26: [ ] | K26: [ ] | L26: [ ]
A27: =+'Checklist A'!P17 -> 0 | D27: [ ] | E27: [ ] | F27: [ ] | G27: [ ] | H27: [ ] | I27: [ ] | J27: [ ] | K27: [ ] | L27: [ ]
A28: =+'Checklist A'!J18 -> 0 | D28: [ ] | E28: [ ] | F28: [ ] | G28: [ ] | H28: [ ] | I28: [ ] | J28: [ ] | K28: [ ] | L28: [ ]
A29: =+'Checklist A'!K18 -> 0 | D29: [ ] | E29: [ ] | F29: [ ] | G29: [ ] | H29: [ ] | I29: [ ] | J29: [ ] | K29: [ ] | L29: [ ]
A30: =+'Checklist A'!M18 -> 0 | D30: [ ] | E30: [ ] | F30: [ ] | G30: [ ] | H30: [ ] | I30: [ ] | J30: [ ] | K30: [ ] | L30: [ ]
A31: =+'Checklist A'!N18 -> 0 | D31: [ ] | E31: [ ] | F31: [ ] | G31: [ ] | H31: [ ] | I31: [ ] | J31: [ ] | K31: [ ] | L31: [ ]
A32: =+'Checklist A'!O18 -> 0 | D32: [ ] | E32: [ ] | F32: [ ] | G32: [ ] | H32: [ ] | I32: [ ] | J32: [ ] | K32: [ ] | L32: [ ]
A33: =+'Checklist A'!P18 -> 0 | D33: [ ] | E33: [ ] | F33: [ ] | G33: [ ] | H33: [ ] | I33: [ ] | J33: [ ] | K33: [ ] | L33: [ ]
A34: =+'Checklist A'!J19 -> 0 | D34: [ ] | E34: [ ] | F34: [ ] | G34: [ ] | H34: [ ] | I34: [ ] | J34: [ ] | K34: [ ] | L34: [ ]
A35: =+'Checklist A'!K19 -> 0 | D35: [ ] | E35: [ ] | F35: [ ] | G35: [ ] | H35: [ ] | I35: [ ] | J35: [ ] | K35: [ ] | L35: [ ]
A36: =+'Checklist A'!M19 -> 0 | D36: [ ] | E36: [ ] | F36: [ ] | G36: [ ] | H36: [ ] | I36: [ ] | J36: [ ] | K36: [ ] | L36: [ ]
A37: =+'Checklist A'!N19 -> 0 | D37: [ ] | E37: [ ] | F37: [ ] | G37: [ ] | H37: [ ] | I37: [ ] | J37: [ ] | K37: [ ] | L37: [ ]
A38: =+'Checklist A'!O19 -> 0 | D38: [ ] | E38: [ ] | F38: [ ] | G38: [ ] | H38: [ ] | I38: [ ] | J38: [ ] | K38: [ ] | L38: [ ]
A39: =+'Checklist A'!P19 -> 0 | D39: [ ] | E39: [ ] | F39: [ ] | G39: [ ] | H39: [ ] | I39: [ ] | J39: [ ] | K39: [ ] | L39: [ ]
A40: =+'Checklist A'!J20 -> 0 | D40: [ ] | E40: [ ] | F40: [ ] | G40: [ ] | H40: [ ] | I40: [ ] | J40: [ ] | K40: [ ] | L40: [ ]
A41: =+'Checklist A'!K20 -> 0 | D41: [ ] | E41: [ ] | F41: [ ] | G41: [ ] | H41: [ ] | I41: [ ] | J41: [ ] | K41: [ ] | L41: [ ]
A42: =+'Checklist A'!M20 -> 0 | D42: [ ] | E42: [ ] | F42: [ ] | G42: [ ] | H42: [ ] | I42: [ ] | J42: [ ] | K42: [ ] | L42: [ ]
A43: =+'Checklist A'!N20 -> 0 | D43: [ ] | E43: [ ] | F43: [ ] | G43: [ ] | H43: [ ] | I43: [ ] | J43: [ ] | K43: [ ] | L43: [ ]
A44: =+'Checklist A'!O20 -> 0 | D44: [ ] | E44: [ ] | F44: [ ] | G44: [ ] | H44: [ ] | I44: [ ] | J44: [ ] | K44: [ ] | L44: [ ]
A45: =+'Checklist A'!P20 -> 0 | D45: [ ] | E45: [ ] | F45: [ ] | G45: [ ] | H45: [ ] | I45: [ ] | J45: [ ] | K45: [ ] | L45: [ ]
A46: =+'Checklist A'!J21 -> 0 | D46: [ ] | E46: [ ] | F46: [ ] | G46: [ ] | H46: [ ] | I46: [ ] | J46: [ ] | K46: [ ] | L46: [ ]
A47: =+'Checklist A'!K21 -> 0 | D47: [ ] | E47: [ ] | F47: [ ] | G47: [ ] | H47: [ ] | I47: [ ] | J47: [ ] | K47: [ ] | L47: [ ]
A48: =+'Checklist A'!M21 -> 0 | D48: [ ] | E48: [ ] | F48: [ ] | G48: [ ] | H48: [ ] | I48: [ ] | J48: [ ] | K48: [ ] | L48: [ ]
A49: =+'Checklist A'!N21 -> 0 | D49: [ ] | E49: [ ] | F49: [ ] | G49: [ ] | H49: [ ] | I49: [ ] | J49: [ ] | K49: [ ] | L49: [ ]
A50: =+'Checklist A'!O21 -> 0 | D50: [ ] | E50: [ ] | F50: [ ] | G50: [ ] | H50: [ ] | I50: [ ] | J50: [ ] | K50: [ ] | L50: [ ]
A51: =+'Checklist A'!P21 -> 0 | D51: [ ] | E51: [ ] | F51: [ ] | G51: [ ] | H51: [ ] | I51: [ ] | J51: [ ] | K51: [ ] | L51: [ ]

Sheet Appendix Deviation
B3: All dates & times are GMT | L3: =+'Vsl Details'!C7 -> M/T Example
B4: PILOTS | D4: SPD | F4: Voy : | G4: =+'Vsl Details'!C9 -> 11 | H4: =+'Vsl Details'!C10 -> Loaded | K4: Time | AS4: Yes
B5: 2005-07-22T12:00:00 | D5: 14.3 | F5: From : | G5: ='Checklist A'!$G$8 -> Singapore | K5: =+'Vsl Details'!C14 -> 8 | L5: To : | M5: ='Checklist A'!$G$9 -> Rotterdam | P5: =+'Vsl Details'!C18 -> 1 | W5: Appendix - Deviation | AS5: No
AS6: Level 1
A7: WP No. | B7: GEOGRAPHICAL AREA WAYPOINT | C7: LATITUDE | F7: LONGITUDE | I7: CO | J7: DIST. TO NEXT WP | K7: DTG | L7: RL/GC | M7: Verification Freq / Method | Q7: Max Spd | R7: T&P Notices | S7: Safety Setting | T7: UKC | U7: MARPOL Special area / ECA Zone | V7: Security Level | W7: Remarks: NAV Aids, Restrictions, Weather, Cautions, Traffic Density, UKC, Tides etc, T&P notice number effecting each leg, extra lookout if passing through HRA, Area where vessel should be hardened. | X7: Watch Level | AS7: Level 2
Z8: latrad | AA8: longrad | AB8: dlon_W | AC8: dlon_E | AD8: dphi | AE8: q1 | AF8: q | AG8: dlon_min | AH8: tc_rad | AI8: tc | AJ8: dist_rad | AK8: dist | AS8: Level 3
C9: DEG | D9: MIN | E9: N/S | F9: DEG | G9: MIN | H9: E/W | M9: Freq | N9: Main | O9: Alt 1 | P9: Alt 2 | U9: Yes / No | AS9: Ocean Passage (Open) | AT9: Fairways outside ports (Coastal / Shallow waters) | AU9: Fairways inside ports (Within Port Limits / Restricted Waters) | CG9: Course | CH9: Distance
A10: PB 1 | B10: PILOT STATION | C10: 27° | D10: 00.00` | E10: S | F10: 160° | G10: 09.00` | H10: E | I10: =IF(C11="","",IF(AC10<AB10,360-AI10,AI10)) -> 028° | J10: =IF(C11="",0,+AK10) -> 3674.5 | K10: =+J40 -> 16016.1 | M10: < 1 h | N10: Vis | O10: Rdr | P10: Gps | Q10: MAN | R10: Yes | S10: Ocean Passage (Open) | U10: No | V10: Level 1 | Z10: =IF(E10="N",RADIANS(C10+(D10/60)),-RADIANS(C10+(D10/60))) -> -0.471238898 | AA10: =IF(H10="E",+RADIANS(F10+(G10/60)),-RADIANS(F10+(G10/60))) -> 2.795144797 | AB10: =MOD(AA11-AA10,2*PI()) -> 0.5175483009 | AC10: =MOD(AA10-AA11,2*PI()) -> 5.765637006 | AD10: =LN(TAN(Z11/2+PI()/4)/TAN(Z10/2+PI()/4)) -> 0.9831883811 | AE10: =COS(Z10) -> 0.8910065242 | AF10: =IF(Z11=Z10,AE10,(Z11-Z10)/AD10) -> 0.9619957159 | AG10: =MIN(AB10,AC10) -> 0.5175483009 | AH10: =MOD(ATAN2(AD10,AG10),2*PI()) -> 0.4845422274 | AI10: =DEGREES(AH10) -> 27.8 | AJ10: =SQRT(AF10^2*AG10^2+(Z11-Z10)^2) -> 1.068861503 | AK10: =DEGREES(AJ10)*60 -> 3674.5 | CG10: =I10 -> 27.76222 | CH10: 3674.4752
A11: PB 2 | B11: GHAR BUOY | C11: 27° | D11: 11.50` | E11: N | F11: 170° | G11: 11.80` | H11: W | I11: 270° | J11: 7410.1 | K11: =+K10-J10 -> 12341.6 | M11: < 1 h | N11: Vis | O11: Rdr | P11: Gps | Q11: MAN | Z11: =IF(E11="N",RADIANS(C11+(D11/60)),-RADIANS(C11+(D11/60))) -> 0.4745841124 | AA11: =IF(H11="E",+RADIANS(F11+(G11/60)),-RADIANS(F11+(G11/60))) -> -2.970492209 | AB11: =MOD(AA12-AA11,2*PI()) -> 3.859882907 | AC11: =MOD(AA11-AA12,2*PI()) -> 2.4233024 | AD11: =LN(TAN(Z12/2+PI()/4)/TAN(Z11/2+PI()/4)) -> -3.270282687e-05 | AE11: =COS(Z11) -> 0.8894828461 | AF11: =IF(Z12=Z11,AE11,(Z12-Z11)/AD11) -> 0.8894894923 | AG11: =MIN(AB11,AC11) -> 2.4233024 | AH11: =MOD(ATAN2(AD11,AG11),2*PI()) -> 1.570809822 | AI11: =DEGREES(AH11) -> 90.0 | AJ11: =SQRT(AF11^2*AG11^2+(Z12-Z11)^2) -> 2.155502022 | AK11: =DEGREES(AJ11)*60 -> 7410.1 | CG11: 269.99923 | CH11: 7410.0701
A12: PB 3 | B12: RAS TANNURAH RACON (K) | C12: 27° | D12: 11.40` | E12: N | F12: 050° | G12: 57.50` | H12: E | I12: 099° | J12: 60.8 | K12: =+K11-J11 -> 4931.6 | M12: < 1 h | N12: Vis | O12: Rdr | P12: Gps | Q12: MAN | Z12: =IF(E12="N",RADIANS(C12+(D12/60)),-RADIANS(C12+(D12/60))) -> 0.4745550236 | AA12: =IF(H12="E",+RADIANS(F12+(G12/60)),-RADIANS(F12+(G12/60))) -> 0.889390698 | AB12: 0.01963495408 | AC12: 6.263550353 | AD12: -0.003071889606 | AE12: 0.8894961384 | AF12: 0.8901196046 | AG12: 0.01963495408 | AH12: 1.725988348 | AI12: 98.9 | AJ12: 0.01769005903 | AK12: 60.8 | CG12: 98.89185 | CH12: 60.8139
A13: PB 4 | B13: FIELD | C13: 27° | D13: 02.00` | E13: N | F13: 052° | G13: 05.00` | H13: E | I13: 132° | J13: 30.0 | K13: 4870.7 | M13: < 1 h | N13: Vis | O13: Rdr | P13: Gps | Q13: MAN | Z13: 0.4718206745 | AA13: 0.9090256521 | AB13: 0.007272205217 | AC13: 6.275913102 | AD13: -0.006521728036 | AE13: 0.8907422525 | AF13: 0.8920586907 | AG13: 0.007272205217 | AH13: 2.301841754 | AI13: 131.9 | AJ13: 0.00871381565 | AK13: 30.0 | CG13: 131.88582 | CH13: 29.9559
A14: PB 5 | B14: CABLE BANK | C14: 26° | D14: 42.00` | E14: N | F14: 052° | G14: 30.00` | H14: E | I14: 106° | J14: 104.6 | K14: 4840.8 | M14: < 1 h | N14: Vis | O14: Rdr | P14: Gps | Q14: MAN | Z14: 0.4660029103 | AA14: 0.9162978573 | AB14: 0.03257947937 | AC14: 6.250605828 | AD14: -0.009649705906 | AE14: 0.8933713883 | AF14: 0.8952998031 | AG14: 0.03257947937 | AH14: 1.858753769 | AI14: 106.5 | AJ14: 0.0304209554 | AK14: 104.6 | CG14: 106.49875 | CH14: 104.5795
A15: PB 6 | B15: FORUR ISLAND | C15: 26° | D15: 12.30` | E15: N | F15: 054° | G15: 22.00` | H15: E | I15: 097° | J15: 50.2 | K15: 4736.2 | M15: < 1 h | N15: Vis | O15: Rdr | P15: Gps | Q15: MAN | Z15: 0.4573635305 | AA15: 0.9488773367 | AB15: 0.01614429558 | AC15: 6.267041012 | AD15: -0.001879642259 | AE15: 0.8972198376 | AF15: 0.8975918702 | AG15: 0.01614429558 | AH15: 1.686702132 | AI15: 96.6 | AJ15: 0.0145888734 | AK15: 50.2 | CG15: 96.64091 | CH15: 50.1529
A16: PB 7 | B16: TONBE ISLAND | C16: 26° | D16: 06.50` | E16: N | F16: 055° | G16: 17.50` | H16: E | I16: 070° | J16: 11.9 | K16: 4686.1 | M16: < 1 h | N16: Vis | O16: Rdr | P16: Gps | Q16: MAN | Z16: 0.4556763789 | AA16: 0.9650216322 | AB16: 0.003636102608 | AC16: 6.279549205 | AD16: 0.001296138279 | AE16: 0.8979635797 | AF16: 0.8977073305 | AG16: 0.003636102608 | AH16: 1.228374921 | AI16: 70.4 | AJ16: 0.003465338276 | AK16: 11.9 | CG16: 70.38070 | CH16: 11.9130
A17: PB 8 | B17: TSS OUT | C17: 26° | D17: 10.50` | E17: N | F17: 055° | G17: 30.00` | H17: E | I17: 067° | J17: 51.7 | K17: 4674.1 | M17: < 1 h | N17: Vis | O17: Rdr | P17: Gps | Q17: MAN | Z17: 0.4568399317 | AA17: 0.9686577349 | AB17: 0.01541707506 | AC17: 6.267768232 | AD17: 0.006654402881 | AE17: 0.8974509275 | AF17: 0.896129733 | AG17: 0.01541707506 | AH17: 1.163327224 | AI17: 66.7 | AJ17: 0.0150477042 | AK17: 51.7 | CG17: 66.65374 | CH17: 51.7302
A18: PB 9 | B18: TSS HORMUZ 1 | C18: 26° | D18: 31.00` | E18: N | F18: 056° | G18: 23.00` | H18: E | I18: 065° | J18: 5.7 | K18: 4622.4 | M18: < 1 h | N18: Vis | O18: Rdr | P18: Gps | Q18: MAN | Z18: 0.46280314 | AA18: 0.9840748099 | AB18: 0.00168715161 | AC18: 6.281498156 | AD18: 0.0007803417977 | AE18: 0.8948045301 | AF18: 0.894648605 | AG18: 0.00168715161 | AH18: 1.13757947 | AI18: 65.2 | AJ18: 0.001663039351 | AK18: 5.7 | CG18: 65.17850 | CH18: 5.7171
A19: PB 10 | B19: TSS HORMUZ 2 | C19: 26° | D19: 33.40` | E19: N | F19: 056° | G19: 28.80` | H19: E | I19: 090° | J19: 3.6 | K19: 4616.7 | M19: < 1 h | N19: Vis | O19: Rdr | P19: Gps | Q19: MAN | Z19: 0.4635012717 | AA19: 0.9857619615 | AB19: 0.001163552835 | AC19: 6.282021754 | AD19: 0 | AE19: 0.8944926255 | AF19: 0.8944926255 | AG19: 0.001163552835 | AH19: 1.570796327 | AI19: 90.0 | AJ19: 0.00104078943 | AK19: 3.6 | CG19: 90.00000 | CH19: 3.5780
A20: PB 11 | B20: TSS HORMUZ 3 | C20: 26° | D20: 33.40` | E20: N | F20: 056° | G20: 32.80` | H20: E | I20: 149° | J20: 62.1 | K20: 4613.1 | M20: < 1 h | N20: Vis | O20: Rdr | P20: Gps | Q20: MAN | Z20: 0.4635012717 | AA20: 0.9869255144 | AB20: 0.01023926495 | AC20: 6.272946042 | AD20: -0.01729925893 | AE20: 0.8944926255 | AF20: 0.8979246106 | AG20: 0.01023926495 | AH20: 2.607157448 | AI20: 149.4 | AJ20: 0.01805044908 | AK20: 62.1 | CG20: 149.37912 | CH20: 62.0529
A21: PB 12 | B21: RAS AL KUH 1 | C21: 25° | D21: 40.00` | E21: N | F21: 057° | G21: 08.00` | H21: E | I21: 140° | J21: 13.1 | K21: 4551.1 | M21: < 1 h | N21: Vis | O21: Rdr | P21: Gps | Q21: MAN | Z21: 0.4479678413 | AA21: 0.9971647793 | AB21: 0.002705260341 | AC21: 6.280480047 | AD21: -0.003225075904 | AE21: 0.9013291614 | AF21: 0.9019577131 | AG21: 0.002705260341 | AH21: 2.443624675 | AI21: 140.0 | AJ21: 0.003796754337 | AK21: 13.1 | CG21: 140.00938 | CH21: 13.0523
A22: PB 13 | B22: RAS AL KUH 2 | C22: 25° | D22: 30.00` | E22: N | F22: 057° | G22: 17.30` | H22: E | I22: 136° | J22: 124.5 | K22: 4538.0 | M22: < 1 h | N22: Vis | O22: Rdr | P22: Gps | Q22: MAN | Z22: 0.4450589593 | AA22: 0.9998700396 | AB22: 0.02754711336 | AC22: 6.255638194 | AD22: -0.02882915937 | AE22: 0.9025852843 | AF22: 0.9081062144 | AG22: 0.02754711336 | AH22: 2.378931451 | AI22: 136.3 | AJ22: 0.03621014613 | AK22: 124.5 | CG22: 136.30273 | CH22: 124.4813
A23: PB 14 | B23: 24° NORTH | C23: 24° | D23: 00.00` | E23: N | F23: 058° | G23: 52.00` | H23: E | I23: 136° | J23: 110.5 | K23: 4413.5 | M23: < 1 h | N23: Vis | O23: Rdr | P23: Gps | Q23: MAN | Z23: 0.4188790205 | AA23: 1.027417153 | AB23: 0.02414372132 | AC23: 6.259041586 | AD23: -0.02534455349 | AE23: 0.9135454576 | AF23: 0.918187677 | AG23: 0.02414372132 | AH23: 2.380454713 | AI23: 136.4 | AJ23: 0.0321400533 | AK23: 110.5 | CG23: 136.39001 | CH23: 110.4894
A24: PB 15 | B24: RAS AL HADD | C24: 22° | D24: 40.00` | E24: N | F24: 060° | G24: 15.00` | H24: E | I24: 180° | J24: 40.0 | K24: 4303.0 | M24: < 1 h | N24: Vis | O24: Rdr | P24: Gps | Q24: MAN | Z24: 0.3956079638 | AA24: 1.051560874 | AB24: 0 | AC24: 0 | AD24: -0.01257919674 | AE24: 0.9227624444 | AF24: 0.924981824 | AG24: 0 | AH24: 3.141592654 | AI24: 180.0 | AJ24: 0.01163552835 | AK24: 40.0 | CG24: 180.00000 | CH24: 40.0000
A25: PB 16 | B25: RAS QUMAYLAH | C25: 22° | D25: 00.00` | E25: N | F25: 060° | G25: 15.00` | H25: E | I25: 204° | J25: 618.9 | K25: 4263.0 | M25: < 1 h | N25: Vis | O25: Rdr | P25: Gps | Q25: MAN | Z25: 0.3839724354 | AA25: 1.051560874 | AB25: 6.206099932 | AC25: 0.0770853753 | AD25: -0.1723632862 | AE25: 0.9271838546 | AF25: 0.953519984 | AG25: 0.0770853753 | AH25: 2.721047825 | AI25: 155.9 | AJ25: 0.1800392628 | AK25: 618.9 | CG25: 204.09544 | CH25: 618.9294
A26: PB 17 | B26: SUQUTRA | C26: 12° | D26: 35.00` | E26: N | F26: 055° | G26: 50.00` | H26: E | I26: 209° | J26: 1647.4 | K26: 3644.1 | M26: < 1 h | N26: Vis | O26: Rdr | P26: Gps | Q26: MAN | Z26: 0.2196205975 | AA26: 0.974475499 | AB26: 6.051347405 | AC26: 0.2318379023 | AD26: -0.4234819293 | AE26: 0.9759801759 | AF26: 0.9925652842 | AG26: 0.2318379023 | AH26: 2.640704382 | AI26: 151.3 | AJ26: 0.4792001549 | AK26: 1647.4 | CG26: 208.69878 | CH26: 1647.3688
A27: PB 18 | B27: COMORES | C27: 11° | D27: 30.00` | E27: S | F27: 042° | G27: 33.00` | H27: E | I27: 198° | J27: 284.7 | K27: 1996.7 | M27: < 1 h | N27: Vis | O27: Rdr | P27: Gps | Q27: MAN | Z27: -0.200712864 | AA27: 0.7426375967 | AB27: 6.256132704 | AC27: 0.02705260341 | AD27: -0.08088029244 | AE27: 0.9799247046 | AF27: 0.9710624674 | AG27: 0.02705260341 | AH27: 2.818813088 | AI27: 161.5 | AJ27: 0.08281668583 | AK27: 284.7 | CG27: 198.49391 | CH27: 284.7028
A28: PB 19 | B28: MOZAMBIQUE | C28: 16° | D28: 00.00` | E28: S | F28: 041° | G28: 00.00` | H28: E | I28: 208° | J28: 606.4 | K28: 1712.0 | M28: < 1 h | N28: Vis | O28: Rdr | P28: Gps | Q28: MAN | Z28: -0.2792526803 | AA28: 0.7155849933 | AB28: 6.194464404 | AC28: 0.08872090364 | AD28: -0.1663165438 | AE28: 0.9612616959 | AF28: 0.9357168451 | AG28: 0.08872090364 | AH28: 2.651547575 | AI28: 151.9 | AJ28: 0.1763834729 | AK28: 606.4 | CG28: 208.07751 | CH28: 606.3617
A29: PB 20 | B29: PUNTA ZAVORA | C29: 24° | D29: 55.00` | E29: S | F29: 035° | G29: 55.00` | H29: E | I29: 216° | J29: 285.7 | K29: 1105.7 | M29: < 1 h | N29: Vis | O29: Rdr | P29: Gps | Q29: MAN | Z29: -0.434877872 | AA29: 0.6268640897 | AB29: 6.227916548 | AC29: 0.05526875965 | AD29: -0.0749987788 | AE29: 0.9069215016 | AF29: 0.8920716986 | AG29: 0.05526875965 | AH29: 2.506509736 | AI29: 143.6 | AJ29: 0.08310859294 | AK29: 285.7 | CG29: 216.38757 | CH29: 285.7063
A30: PB 21 | B30: CAPE SANTA LUCIA | C30: 28° | D30: 45.00` | E30: S | F30: 032° | G30: 45.00` | H30: E | I30: 216° | J30: 159.3 | K30: 820.0 | M30: < 1 h | N30: Vis | O30: Rdr | P30: Gps | Q30: MAN | Z30: -0.5017821599 | AA30: 0.57159533 | AB30: 6.251594848 | AC30: 0.03159045946 | AD30: -0.04305439351 | AE30: 0.8767267557 | AF30: 0.8675083528 | AG30: 0.03159045946 | AH30: 2.508583514 | AI30: 143.7 | AJ30: 0.04632557903 | AK30: 159.3 | CG30: 216.26875 | CH30: 159.2556
A31: PB 22 | B31: SOUTH OF DURBAN | C31: 30° | D31: 53.40` | E31: S | F31: 030° | G31: 56.40` | H31: E | I31: 220° | J31: 208.9 | K31: 660.7 | M31: < 1 h | N31: Vis | O31: Rdr | P31: Gps | Q31: MAN | Z31: -0.5391322059 | AA31: 0.5400048706 | AB31: 6.236817727 | AC31: 0.04636758046 | AD31: -0.05488516738 | AE31: 0.8581545225 | AF31: 0.8458707574 | AG31: 0.04636758046 | AH31: 2.44011893 | AI31: 139.8 | AJ31: 0.06077529366 | AK31: 208.9 | CG31: 220.19148 | CH31: 208.9301
A32: PB 23 | B32: EAST LONDON | C32: 33° | D32: 33.00` | E32: S | F32: 028° | G32: 17.00` | H32: E | I32: 241° | J32: 87.1 | K32: 451.8 | M32: < 1 h | N32: Vis | O32: Rdr | P32: Gps | Q32: MAN | Z32: -0.585557964 | AA32: 0.4936372901 | AB32: 6.256423592 | AC32: 0.0267617152 | AD32: -0.01471960065 | AE32: 0.8334038487 | AF32: 0.8300024611 | AG32: 0.0267617152 | AH32: 2.073658394 | AI32: 118.8 | AJ32: 0.02535050965 | AK32: 87.1 | CG32: 241.18813 | CH32: 87.1486
A33: PB 24 | B33: WEST OF CAPE RECIFE | C33: 34° | D33: 15.00` | E33: S | F33: 026° | G33: 45.00` | H33: E | I33: 257° | J33: 96.6 | K33: 364.6 | M33: < 1 h | N33: Vis | O33: Rdr | P33: Gps | Q33: MAN | Z33: -0.5977752688 | AA33: 0.4668755749 | AB33: 6.250024051 | AC33: 0.03316125579 | AD33: -0.007759069702 | AE33: 0.8265897491 | AF33: 0.8247819437 | AG33: 0.03316125579 | AH33: 1.800641423 | AI33: 103.2 | AJ33: 0.02808951146 | AK33: 96.6 | CG33: 256.83085 | CH33: 96.5646
A34: PB 25 | B34: CAPE ST. FRANCIS | C34: 34° | D34: 37.00` | E34: S | F34: 024° | G34: 51.00` | H34: E | I34: 266° | J34: 124.4 | K34: 268.1 | M34: < 1 h | N34: Vis | O34: Rdr | P34: Gps | Q34: MAN | Z34: -0.6041748094 | AA34: 0.4337143191 | AB34: 6.239261188 | AC34: 0.04392411951 | AD34: -0.002829964151 | AE34: 0.8229711547 | AF34: 0.8223092397 | AG34: 0.04392411951 | AH34: 1.635135878 | AI34: 93.7 | AJ34: 0.03619409762 | AK34: 124.4 | CG34: 266.31362 | CH34: 124.4261
A35: PB 26 | B35: TSS IN | C35: 34° | D35: 45.00` | E35: S | F35: 022° | G35: 20.00` | H35: E | I35: 262° | J35: 78.8 | K35: 143.6 | M35: < 1 h | N35: Vis | O35: Rdr | P35: Gps | Q35: MAN | Z35: -0.6065019151 | AA35: 0.3897901996 | AB35: 6.255550927 | AC35: 0.02763437982 | AD35: -0.004076091648 | AE35: 0.8216469379 | AF35: 0.8206916548 | AG35: 0.02763437982 | AH35: 1.717241125 | AI35: 98.4 | AJ35: 0.02292468823 | AK35: 78.8 | CG35: 261.60933 | CH35: 78.8093
A36: PB 27 | B36: TSS OUT | C36: 34° | D36: 56.50` | E36: S | F36: 020° | G36: 45.00` | H36: E | I36: 245° | J36: 36.0 | K36: 64.8 | M36: < 1 h | N36: Vis | O36: Rdr | P36: Gps | Q36: MAN | Z36: -0.6098471295 | AA36: 0.3621558198 | AB36: 6.271549779 | AC36: 0.01163552835 | AD36: -0.005330989306 | AE36: 0.8197355828 | AF36: 0.8184828143 | AG36: 0.01163552835 | AH36: 2.000419306 | AI36: 114.6 | AJ36: 0.01047545989 | AK36: 36.0 | CG36: 245.38442 | CH36: 36.0120
A37: PB 28 | B37: CAPE AGULHAS | C37: 35° | D37: 11.50` | E37: S | F37: 020° | G37: 05.00` | H37: E | I37: 277° | J37: 28.8 | K37: 28.8 | M37: < 1 h | N37: Vis | O37: Rdr | P37: Gps | Q37: MAN | Z37: -0.6142104526 | AA37: 0.3505202914 | AB37: 6.27300422 | AC37: 0.0101810873 | AD37: 0.001245359539 | AE37: 0.8172287284 | AF37: 0.817521927 | AG37: 0.0101810873 | AH37: 1.449080101 | AI37: 83.0 | AJ37: 0.008385298895 | AK37: 28.8 | CG37: 276.97383 | CH37: 28.8265
A38: PB 29 | B38: QUOIN POINT | C38: 35° | D38: 08.00` | E38: S | F38: 019° | G38: 30.00` | H38: E | J38: 0.0 | K38: -0.0 | M38: < 1 h | N38: Vis | O38: Rdr | P38: Gps | Q38: MAN | Z38: -0.6131923439 | AA38: 0.3403392041 | AB38: 5.942846103 | AC38: 0.3403392041 | AD38: 0.6556797708 | AE38: 0.8178150545 | AF38: 0.9352009489 | AG38: 0.3403392041 | AH38: 0.4787815606 | AI38: 27.4 | AJ38: 0.6908766459 | AK38: 2375.1 | CH38: 0.0000
A39: PB 30 | I39: =IF(C39="","",IF(AC39<AB39,360-AI39,AI39)) ->  | J39: =IF(C39="",0,+AK39) -> 0.0 | K39: =+K38-J38 -> -0.0 | M39: < 1 h | N39: Vis | O39: Rdr | P39: Gps | Q39: MAN | Z39: 0 | AA39: 0 | AB39: 0 | AC39: 0 | AD39: 0 | AE39: 1 | AF39: 1 | AG39: 0 | AJ39: 0 | AK39: 0.0 | CH39: 0.0000
F40: TOTAL DISTANCE: | J40: =SUM(J10:J39) -> 16016.1

Sheet Amendment to Passage Plan
A2: Amendment to Passage Plan
A3: Amendment No | D3: Voyage:
A4: Amendment Commenced (Date and Time (LT/UTC)) | D4: Amendment Completed (Date and Time (LT/UTC))
A5: Amendment of Passage Started at Position | D5: Amendment of Passage Completed at Position
A6: Reasons for Amendment of Passage
A7: Additional ENC’s | D7: Additional Publications
B8: UKC for new route calculated | D8: New UKC:
B9: Changes to ECDIS route | D9: Note:
B10: Risk Assessment
B11: Applicable NAVAREA & NAVTEX messages have been processed | D11: Note:
B12: Briefing with Bridge and Engine Team | D12: Note:
A14: Remarks:
A20: SIGNATURES FOR AMENDMENT OF PASSAGE

Sheet Post Voyage Review
A1: NAV-01 | H1: Doc No : NAV-01
C2: POST VOYAGE REVIEW | H2: Revision: 01 Date: 15 Oct 2024
H3: Issued by: DPA Approved by: MD
A4: Post Voyage review to be carried out by the Master with Bridge Team
A5: (Post-voyage review to be carried out after every voyage to check if any new hazards or useful information discovered, for incorporation in the future passage plan)
A6: Points to consider:
A7: 1. Any amendment to the waypoints
A8: 2. Appropriateness of charts and publications.
A9: 3. Adequateness of the Bridge team composition
A10: 4. UKC - calculated vs actual observed
A11: 5. Adequateness of position verification interval
A12: 6. Initiate ECDIS Backup as per manufacturers instructions
A45: Master's name :
A47: Signature :

Sheet Emer and Contingency Plan
A3: Emergency and Contingency Plan
A4: Vessel should prepare a separate HSSEQ-18 (Risk Assessment) if required.
A6: No | B6: Hazard | E6: Risk | H6: Contingency Plan / Control Measures
A7: 1 | B7: Loss of Propulsion or Steering Failure | E7: Collision or Grounding
A10: 2 | B10: Failure of any critical Navigational Equipment | E10: Collision or Grounding
A12: 3 | B12: Adverse weather and sea conditions | E12: Inability to keep a proper lookout due to loss of visibility
E13: Reduction of UKC due to rolling and pitching
E14: Pilot cannot disembark from the ship at designated disembarkation point.
E15: Grounding
A18: 4 | B18: Unscheduled movement of any other vessel in the pilotage water | E18: Collision
A20: 5 | B20: Inadequate navigation charts & publications (Small scale, not corrected) | E20: Unaware of nav warnings / changes, Grounding
A22: 6 | B22: Delay in arrival of pilot | E22: Collision or Grounding
A24: 7 | B24: Unreliable Navigational aids | E24: Incorrect position fixing causing grounding
A30: Notes:
A31: 1. Additional lines can be added to above to make this plan ship and voyage specific.
A32: 2. Contingency plan in case of Loss of Propulsion or Steering Failure for each leg of the passage in pilotage waters and approached to the port must included.

Sheet Sample Emer & Contingency Plan
A10: Emergency and Contingency Plan
A11: Below if for guidance only, vessel should prepare passage specific plan.
A12: Vessel should prepare a separate HSSEQ-18 (Risk Assessment) if required.
A14: No | B14: Emergency Situation | E14: Likely consequence | H14: Contingency Plan / Control Measures
A15: 1 | B15: Loss of Propulsion or Steering Failure | E15: Collision or Grounding | H15: WPT 1 to 4: There is no emergency anchorage in this area. In case of emergency, drop anchor in the channel and call for tug assistance.
H16: WPT 5 to 7: Anchor at contingency anchorage in position 03 35N 041 22E
H17: WPT 7 to 12: There is sufficient sea room available to remain adrift in this area. Keep the anchors ready for letting go.
A18: 2 | B18: Failure of any critical Navigational Equipment | E18: Collision or Grounding | H18: Assess the risk associated with proceeding with passage in this condition.
H19: Consider aborting passage, and anchor or drift at a safe location
A20: 3 | B20: Adverse weather and sea conditions | E20: Inability to keep a proper lookout due to loss of visibility | H20: Reduce speed and / or abort passage
E21: Reduction of UKC due to rolling and pitching | H21: Verify the UKC of the ship. Consider aborting passage in case if it is not considered safe to proceed with the voyage.
E22: Pilot cannot disembark from the ship at designated disembarkation point. | H22: Discuss the available options with the Pilot and VTIS. Allow the pilot to disembark earlier only after assessing that it is safe to continue the voyage without the pilot. Consider aborting passage and anchor in the channel or at th enearest contingency anchorage in case if it is not considered safe to proceed out without pilot.
E23: Grounding | H23: Plan Passage route after giving consideration to direction and strength of current.
H24: Closely monitor actual course made good during the passage.
H25: Verify ship's position and drift using Parallel Index.
A26: 4 | B26: Unscheduled movement of any other vessel in the pilotage water | E26: Collision | H26: Discuss the intentions of other ship with pilot or VTIS. In case if pilot gives any advice for manouvering after communicationg with the other vessel in any foreign language, then request the pilot to explain in English the intentions of other ship.
H27: Plot the other vessel on ARPA and closely monitor her actions
A28: 5 | B28: Inadequate navigation charts & publications (Small scale, not corrected) | E28: Unaware of nav warnings / changes, Grounding | H28: Digitrace correction for quick updates Obtain charts through agent or via e mail from Office
H29: Office contacted for assistance
A30: 6 | B30: Delay in arrival of pilot | E30: Collision or Grounding | H30: Do not proceed any further than abort point unless it has been positively confirmed that vessel can safely enter the pilotage water without pilot. Abort the passage in case of any doubt, and drop anchor at anchorage location XXXX N XXXX E in case if the passage is aborted.
A32: 7 | B32: Unreliable Navigational aids | E32: Incorrect position fixing causing grounding | H32: Consider aborting passage, and anchor or drift at a safe location
H33: Discuss the available options with the Pilot and VTIS. Allow the pilot to embark earlier if safe to do so.
